Cogmind - Beta 13 @@@ ROGUE MODE // 2024.03.08 @ 21:14:11 Player: lyrabold Result: Destroyed by H-88 Terminator with KE Penetrator Performance ------------- Evolutions (9) 4500 Regions Visited (30) 6000 Robots Destroyed (650) 3250 Value Destroyed (35812) 35812 Prototype IDs (84) 1680 Alien Tech Used (10) 2000 Bonus (43558) 43558 TOTAL SCORE: 96800 Bonus ------- Triggered High Security 500 High Alert Combat Kills 13669 Follower Combat Kills 1842 Entered Garrisons 200 Network Hubs Disabled 200 Met Imprinter 300 Destroyed Z-Imprinter 1000 Triggered Deep Caves Wall 500 Exposed GOLEM Chamber 500 Acquired ECA 300 Met Warlord at Base 500 MAIN.C Attacked Warlord 500 Warlord Defense Kills 3438 Met R17 at Cetus 500 Used Core Reset Matrix 3000 Met R17 at Research 2000 Scanned by Researcher 500 Pursued by Intercept 2000 Met Sigix 2000 Destroyed MAIN.C Guards 500 Met MAIN.C 5000 Destroyed MAIN.C Shell 5000 Met Warlord at Command 2000 Friendly Fire -2391 Cogmind --------- Core Integrity 0/1850 Matter 122/300 Energy 100/100 System Corruption 78% Temperature Cool (0) Movement Core (50) Location -1/Command Parts ------- > --- POWER (4) -------- (None) > --- PROPULSION (5) --- (None) > --- UTILITY (13) ----- Improved Targeting Computer > --- WEAPON (3) ------- (None) > --- INVENTORY (5) ---- Transdimensional Reconstructor Microwarp Drive Slug Cannon Point Singularity Launcher Peak State ------------ > --- POWER ------------ Assembled Flux Generator Improved Quantum Reactor > --- PROPULSION ------- Enhanced Biometal Leg Enhanced Biometal Leg Enhanced Biometal Leg Centrium Leg Centrium Leg > --- UTILITY ---------- High-capacity Storage Unit Assembled Biocell Array Experimental Optical Array Assembled Combat Suite Quantum Capacitor Experimental Transmission Jammer Advanced Reaction Control System Assembled Alloy Armor System Mapper GOLEM Unit > --- WEAPON ----------- Assembled Focal Cannon Omega Cannon > --- INVENTORY -------- Improved Quantum Reactor Enhanced Biometal Leg Enhanced Biometal Leg Centrium Leg Experimental Energy Well Zionite Biocell Advanced Particle Accelerator Quantum Capacitor Centrium Medium Armor Plating Experimental EM Disruption Field Advanced Force Field Antimissile System Ghost Barrier Transdimensional Reconstructor Microwarp Drive Vortex Shotgun Vortex Shotgun Neutron Missile Launcher [Rating: 217] Favorites ----------- Power Assembled Flux Generator Engine Reinforced Deuterium Engine Power Core Fission Core Reactor Assembled Flux Generator Propulsion Assembled Alloy Leg Treads Light Treads Leg Assembled Alloy Leg Wheel Compact Wheel Utility High-capacity Storage Unit Device Improved Shield Generator Storage High-capacity Storage Unit Processor Experimental Optical Array Hackware System Mapper Protection Layered Medium Armor Plating Artifact Microwarp Drive Weapon Assembled Focal Cannon Energy Gun Subdweller Laser Energy Cannon Assembled Focal Cannon Ballistic Gun Assault Rifle Ballistic Cannon Bore Cannon Launcher Heavy Rocket Launcher Special Weapon Mining Laser Impact Weapon Impact Mace Slashing Weapon Sigix Broadsword Piercing Weapon Kinetic Spear Special Melee Weapon Improved Datajack Build | -11 -10 -10 -10 -8 -8 -8 -7 -7 -7 -7 -7 -6 -6 -6 -6 -6 -6 -5 -4 -4 -4 -4 -3 -3 -3 -3 -2 -2 -1 -1 ------- Run | Yrd Mat Min Sub Mat Gar Mat Fac Low Low Zio Dee Pro Fac Ext Cet Arc Hub Fac Fac Upp Upp War Pro Res Qua Sec Res Tes Acc Com Slots Evolved 18 | . . . . 4 . . 2 . . . . . 2 . . . . 2 2 . . . . 2 . . 2 . 2 . Power 3 | . . . . . . . 1 . . . . . . . . . . . . . . . . 1 . . . . 1 . Propulsion 3 | . . . . 2 . . . . . . . . . . . . . . 1 . . . . . . . . . . . Utility 11 | . . . . 2 . . 1 . . . . . 2 . . . . 2 . . . . . 1 . . 2 . 1 . Weapon 1 | . . . . . . . . . . . . . . . . . . . 1 . . . . . . . . . . . Parts Attached 731 | 7 18 15 39 8 16 11 32 12 11 4 42 . 13 3 7 5 29 44 15 5 5 33 10 17 39 54 33 25 44 135 Power 46 | 1 1 1 2 . 2 . 2 1 . . 1 . . 1 . . 1 3 1 . . 1 . . 1 1 4 1 5 16 Engine 10 | 1 1 . 1 . 1 . . 1 . . . . . 1 . . . 2 . . . . . . . . . . 1 1 Core 6 | . . 1 1 . . . 1 . . . . . . . . . . 1 . . . . . . . . . . . 2 Reactor 30 | . . . . . 1 . 1 . . . 1 . . . . . 1 . 1 . . 1 . . 1 1 4 1 4 13 Propulsion 108 | 2 2 2 7 2 3 2 5 1 . . 3 . 2 2 2 . 4 11 6 . . 2 1 3 4 4 7 5 7 19 Treads 37 | 2 1 1 4 2 2 2 5 1 . . 3 . 2 2 2 . 1 2 1 . . . . . . . . . . 4 Leg 65 | . . . . . . . . . . . . . . . . . 3 9 5 . . 2 1 3 4 4 7 5 7 15 Wheel 6 | . 1 1 3 . 1 . . . . . . . . . . . . . . . . . . . . . . . . . Hover . | . . . . . . . . . . . . . . . . . . . . . . . . . . . . . . . Flight . | . . . . . . . . . . . . . . . . . . . . . . . . . . . . . . . Utility 355 | 2 11 5 11 1 3 3 10 2 1 . 22 . 10 . 3 4 10 22 6 2 3 17 5 9 29 37 20 17 26 64 Device 196 | 1 4 3 5 . 1 . 6 1 1 . 6 . 4 . . 2 4 11 3 1 1 10 5 7 11 28 15 15 14 37 Storage 18 | 1 3 . 1 . 1 . . . . . 3 . 1 . . . 1 1 . . . . . 1 2 1 . . 2 . Processor 24 | . 1 . . . . . 2 . . . . . . . . . . 3 . . . 2 . . 3 . 4 2 4 3 Hackware 9 | . . . . . . . . . . . . . 2 . . . . 1 . . . . . . 1 . 1 . 2 2 Protection 105 | . 3 2 5 1 1 3 2 1 . . 13 . 3 . 3 2 5 6 3 1 2 5 . 1 12 6 . . 3 22 Artifact 3 | . . . . . . . . . . . . . . . . . . . . . . . . . . 2 . . 1 . Weapon 222 | 2 4 7 19 5 8 6 15 8 10 4 16 . 1 . 2 1 14 8 2 3 2 13 4 5 5 12 2 2 6 36 Energy Gun 41 | . . 1 2 3 4 3 5 . . . . . . . . . . . . . . 2 . . . 1 1 . 1 18 Energy Cannon 84 | . . 1 10 . 1 . 7 5 5 1 8 . 1 . . . 1 4 2 1 1 7 2 2 2 9 1 . 3 10 Ballistic Gun 18 | 2 2 1 . . . 3 . . . . . . . . 1 1 6 . . 1 . . . . . . . . 1 . Ballistic Cannon 8 | . . . 2 . . . . . . . 1 . . . . . 1 . . . . . . . . . . 1 . 3 Launcher 40 | . 1 2 . 2 2 . 1 3 2 1 3 . . . 1 . 4 . . 1 1 2 2 1 2 2 . 1 1 5 Special Weapon 11 | . 1 2 5 . . . . . . . 1 . . . . . 2 . . . . . . . . . . . . . Impact Weapon 6 | . . . . . . . 1 . 3 . . . . . . . . 2 . . . . . . . . . . . . Slashing Weapon 4 | . . . . . . . . . . . 3 . . . . . . . . . . . . . 1 . . . . . Piercing Weapon 7 | . . . . . . . . . . 1 . . . . . . . 2 . . . 2 . 2 . . . . . . Special Melee Weapon 3 | . . . . . 1 . 1 . . 1 . . . . . . . . . . . . . . . . . . . . Unidentified Prototypes 61 | . . . . . . 3 3 . . . 7 . 1 . 3 . 3 3 1 . 1 10 . 3 4 2 5 3 3 6 Corrupted Parts 9 | . . . . . . . . . . . . . . . . . . . 2 . . . 2 . . . . . . 5 System Corruption 46 | . . . . . . . . . . . . . . . . . . . 10 . . . 11 . . . . . . 25 Parts Lost 182 | . . 3 4 . . 2 . . 1 . 8 1 . . . . 19 33 2 . . 1 1 . 1 9 . 4 16 77 Power 34 | . . 1 1 . . . . . . . 2 . . . . . 1 3 . . . . . . . 3 . 1 2 20 Propulsion 38 | . . . . . . . . . . . 2 1 . . . . 3 11 1 . . . . . 1 1 . . 2 16 Utility 81 | . . 1 1 . . 2 . . 1 . 4 . . . . . 10 14 . . . 1 1 . . 3 . 3 9 31 Weapon 29 | . . 1 2 . . . . . . . . . . . . . 5 5 1 . . . . . . 2 . . 3 10 Highest Loss Streak 19 | . . 3 1 . . 1 . . 1 . 4 1 . . . . 8 11 1 . . 1 1 . 1 3 . 4 6 19 To Critical Strikes 2 | . . . . . . . . . . . . 1 . . . . . . . . . . . . . 1 . . . . Average Slot Usage (%) 85 | . 100 99 86 81 82 90 99 100 97 99 83 85 80 83 83 76 72 85 62 81 83 83 82 79 80 82 82 85 78 80 Engine 1 | . 14 . . 9 7 . . 2 7 7 1 . . . 5 5 4 2 . . . . . . . . . . . . Core 2 | . . 13 13 . . . 7 4 . . . . . . . . . . . . . . . . . . . . . 1 Reactor 4 | . . . . . 1 9 6 7 7 7 6 7 5 5 5 5 4 3 3 4 5 5 5 4 6 6 7 7 8 7 Treads 14 | . 27 15 25 18 20 36 30 30 30 30 23 8 9 10 11 11 10 . 2 . . . . . . . . . . 1 Leg 8 | . . . . . . . . . . . 5 15 11 11 7 . 1 22 19 26 26 26 25 23 22 22 20 21 19 16 Wheel 1 | . . 12 2 18 15 . . . . . . . . . . . . . . . . . . . . . . . . . Device 11 | . 13 13 2 . 1 9 14 18 12 15 8 7 10 11 9 10 10 15 17 15 15 16 15 19 15 15 22 21 19 18 Storage 7 | . 14 14 1 9 9 9 7 7 7 7 8 15 11 11 11 11 10 10 8 10 10 10 10 9 8 9 8 8 7 3 Processor 1 | . . . . . . . 4 . . . . . . . . . . . . . . . . . . . 1 4 6 13 Hackware 1 | . . . . . . . . . . . . . 2 5 2 . . 1 . . . . . . 3 4 4 4 7 3 Protection 10 | . . . 11 9 9 9 10 11 15 15 13 15 13 11 15 16 15 13 4 9 9 8 9 8 8 8 3 3 1 5 Energy Gun 1 | . . . 4 8 8 14 6 . . . . . . . . . . . . . . . . . . . . . . 2 Energy Cannon 9 | . . . 14 . . . 8 14 9 6 10 15 16 16 13 11 9 3 4 9 10 10 14 12 6 8 11 12 7 4 Ballistic Gun 1 | . 27 24 . . . . . . . . . . . . 1 4 4 . . 3 5 2 . . . . . . . . Ballistic Cannon 1 | . . . 8 9 9 2 . . . . . . . . . . . 1 . . . . . . . . . . . 1 Naked Turns . | . . . . . . . . . . . . . . . . . . . . . . . . . . . . . . . Heaviest Build 235 | 13 50 53 222 230 235 78 87 117 115 115 143 143 158 149 150 145 141 113 96 125 129 140 141 143 134 158 157 173 173 151 Greatest Support 190 | 40 40 40 40 36 80 80 92 94 94 94 94 60 60 60 160 160 160 110 126 146 146 146 165 165 150 170 190 170 170 190 Greatest Overweight (x) 46 | . 3 3 5 6 14 . 1 1 1 1 2 2 2 2 2 46 16 2 2 . . 1 . 1 1 1 1 1 1 1 Average Overweight (x) . | . . 2 . 6 5 . . . 1 1 1 2 2 2 1 23 . . . . . . . . . . . . . . Largest Inventory Capacity 35 | 8 20 20 35 35 35 20 20 20 20 20 20 20 20 20 20 20 20 20 20 20 20 20 20 20 20 20 20 20 20 20 Average Capacity 18 | 7 14 20 7 35 32 20 20 20 20 20 20 20 20 20 20 20 20 20 20 20 20 20 20 20 20 20 20 20 20 19 Most Carried 35 | 6 20 20 35 34 35 20 20 20 20 20 20 20 20 20 20 20 20 20 20 20 20 20 20 20 20 20 20 20 20 20 Average Carried 17 | 4 13 19 6 28 29 19 19 19 20 19 18 20 19 20 19 19 18 17 16 19 20 19 19 19 19 18 19 19 19 18 Final Capacity 35 | 8 20 20 35 35 20 20 20 20 20 20 20 20 20 20 20 20 20 20 20 20 20 20 20 20 20 20 20 20 20 20 Final Carried 35 | 5 20 20 35 29 20 20 20 20 20 20 20 20 20 20 20 20 9 20 19 20 20 20 19 20 20 18 20 20 16 20 Class Distribution -------------------- 29% | Mutant 11% | Subdweller-Mutant 10% | Scavenger-Tank 10% | Scavenger-Mutant 6% | Scavenger-Golem 6% | Tank 4% | Hacker-Mutant 4% | Alien-Mutant 3% | Alien-Gunner Dominant Class ---------------- Mutant | -10/Materials Mutant | -10/Mines Subdweller-Mutant | -10/Subcaves Subdweller-Mutant | -8/Materials Hauler-Mutant | -8/Garrison Scavenger-Mutant | -8/Materials Scavenger-Mutant | -7/Factory Scavenger-Mutant | -7/Lower Caves Mutant | -7/Lower Caves Mutant | -7/Zion Mutant | -7/Deep Caves Mutant | -6/Proximity Caves Tank | -6/Factory Commander-Tank | -6/Extension Tank | -6/Cetus Scavenger-Tank | -6/Archives Scavenger-Tank | -6/Hub_04(d) Scavenger-Golem | -5/Factory Scavenger-Mutant | -4/Factory Scavenger-Golem | -4/Upper Caves Scavenger-Golem | -4/Upper Caves Scavenger-Golem | -4/Warlord Scavenger-Tank | -3/Proximity Caves Scavenger-Tank | -3/Research Hacker-Mutant | -3/Quarantine Hacker-Mutant | -3/Section 7 Alien-Golem | -2/Research Alien-Gunner | -2/Testing Alien-Mutant | -1/Access Alien-Mutant | -1/Command Resources | -11 -10 -10 -10 -8 -8 -8 -7 -7 -7 -7 -7 -6 -6 -6 -6 -6 -6 -5 -4 -4 -4 -4 -3 -3 -3 -3 -2 -2 -1 -1 ----------- Run | Yrd Mat Min Sub Mat Gar Mat Fac Low Low Zio Dee Pro Fac Ext Cet Arc Hub Fac Fac Upp Upp War Pro Res Qua Sec Res Tes Acc Com Matter Collected 11861 | 408 485 169 768 90 500 303 297 206 255 20 832 . 160 62 152 52 790 725 145 151 89 552 116 219 482 659 483 365 679 1647 Remotely . | . . . . . . . . . . . . . . . . . . . . . . . . . . . . . . . Salvage Created 35815 | 236 542 36 913 199 319 898 539 646 156 . 1543 68 1065 890 900 412 2351 4703 599 475 84 1035 496 1313 1936 2792 600 1896 3141 5032 Parts 1517 | 20 37 3 73 24 9 41 25 28 4 . 44 2 59 40 43 18 132 170 33 21 4 30 15 50 101 101 13 89 128 160 Haulers Intercepted 18 | . 2 . . . . 2 1 . . . . . . . . . 2 2 . . . . . 4 . 1 . . 4 . Recyclers Shooed 15 | 1 . . . 1 . . 1 . 1 . . . . . . . 1 5 1 . . . . . . . 1 . 1 2 Parts Field Recycled . | . . . . . . . . . . . . . . . . . . . . . . . . . . . . . . . Retrieved Matter . | . . . . . . . . . . . . . . . . . . . . . . . . . . . . . . . Parts Self-Destructed 67 | . . . 18 . . . . 27 . . . 2 . . . . . . . 13 4 . 3 . . . . . . . Prevented 10 | . . . . . . . . . 2 . . . . . . . . . . . . . 8 . . . . . . . Kills | -11 -10 -10 -10 -8 -8 -8 -7 -7 -7 -7 -7 -6 -6 -6 -6 -6 -6 -5 -4 -4 -4 -4 -3 -3 -3 -3 -2 -2 -1 -1 ------- Run | Yrd Mat Min Sub Mat Gar Mat Fac Low Low Zio Dee Pro Fac Ext Cet Arc Hub Fac Fac Upp Upp War Pro Res Qua Sec Res Tes Acc Com Combat Hostiles Destroyed 583 | . 12 4 22 7 11 15 6 14 5 . 60 1 14 13 14 4 41 56 9 14 3 24 9 10 28 48 4 29 34 72 Melee 38 | . . . . . . . . . . . 7 . . . . . . 30 . . . . . . . . . . . 1 Guns 65 | . 10 2 1 2 2 12 3 . . . . . . . . . 9 . . . . . . . . . . . 2 22 Cannons 291 | . . . 20 . 2 2 3 7 . . 6 1 12 13 9 3 19 22 4 5 . 4 2 7 24 39 3 27 24 33 AOE 149 | . 2 2 . 5 7 . . 7 5 . 45 . 1 . 4 . 11 . . 9 3 18 5 3 3 6 . 2 . 11 Classes Destroyed 31 | 3 4 1 2 2 . 2 1 1 . . 4 . . 2 . . 2 1 1 . . 2 1 . . . 1 . 1 . Worker 19 | 2 1 . . 1 . . 1 . . . . . 2 . . . 4 3 . . . . . 2 . . . . 1 2 Builder 16 | . . . . 1 . 1 1 . . . . . . . . . 4 4 . . . . . 3 . . . . 2 . Tunneler 10 | 7 . . . . . . . . . . . . . . . . 2 1 . . . . . . . . . . . . Hauler 18 | . 2 . . . . 2 1 . . . . . . . . . 2 2 . . . . . 4 . 1 . . 4 . Recycler 26 | 1 1 . . . . 2 1 . . . . . 2 . . . 1 11 . . . . . 1 . . 2 . 1 3 Mechanic 11 | . . . . . . 1 1 . . . . . 1 . . . . 2 . . . . . 1 2 1 . . . 2 Operator 6 | . . . . . . . . . . . . . 1 . . 2 . 1 . . . . . . 1 . . . . 1 Drone 2 | . . . . . . . . . . . . . . . . . . . . . . . 2 . . . . . . . Watcher 22 | . 2 . . . . 2 1 . . . . . 3 1 2 . 3 . . . . . . . 2 1 . 1 3 1 Swarmer 83 | . 3 2 2 3 7 3 . 4 1 . . . 5 . 3 . 4 9 3 7 2 . . . 4 12 . 4 5 . Saboteur 4 | . . . . . . . . . . . . . . . . . . 1 . . . . . . . 1 . . . 2 Grunt 199 | . 9 . . 2 4 7 2 8 1 . . . 3 5 4 . 16 29 2 4 . 14 6 6 8 19 2 5 10 33 Brawler 14 | . . . . . . . . . . . . . . 1 . . . 3 . 1 . 2 . 1 . 1 . . 1 4 Duelist 17 | . . . . . . . . 1 2 . . . . . . . . 2 . 1 . . . . 1 2 . 2 1 5 Protector 13 | . . . . . . . . . . . . . . . . . 2 2 . . . 4 . . 1 . . . 1 3 Sentry 48 | . . . . 2 . 2 3 1 1 . . . 1 5 . 4 8 2 2 1 1 . 1 1 . 7 . . 1 5 Demolisher 1 | . . . . . . . . . . . . . . . . . . . . . . 1 . . . . . . . . Specialist 2 | . . . . . . . . . . . . . . . . . . . 2 . . . . . . . . . . . Hunter 22 | . . . . . . 3 . . . . . 1 4 1 . . 1 2 . . . . . . 2 . 1 1 2 4 Programmer 57 | . . . . . . . 1 . . . . . 1 . . . 3 5 . . . . . 2 9 6 . 9 7 14 Heavy 1 | . . . . . . . . . . . . . . . . . 1 . . . . . . . . . . . . . Q-Series 2 | . . . . . . . . . . . . . . . . . . . . . . . . . . . . . 2 . Behemoth 1 | . . . . . . . . . . . . . . 1 . . . . . . . . . . . . . . . . Cetus Guard 7 | . . . . . . . . . . . . . . . 7 . . . . . . . . . . . . . . . M Guard 1 | . . . . . . . . . . . . . . . . . . . . . . . . . . . . . . 1 Lightning 11 | . . . . . . . . . . . . . . . . . 7 1 . . . . . . 3 . . . . . Tracker 6 | . . . . . . . . . . . . . . . . . . . . . . . . . . . . 4 2 . Combat Programmer 6 | . . . . . . . . . . . . . . . . . . . . . . . . . . . . 4 2 . Striker 1 | . . . . . . . . . . . . . . . . . . . . . . . . . . . 1 . . . Executioner 3 | . . . . . . . . . . . . . . . . . . . . . . 3 . . . . . . . . Artisan 2 | . . . 2 . . . . . . . . . . . . . . . . . . . . . . . . . . . Subdweller 20 | . . . 20 . . . . . . . . . . . . . . . . . . . . . . . . . . . Z-Technician 5 | . . . . . . . . . . . 5 . . . . . . . . . . . . . . . . . . . Z-Light 11 | . . . . . . . . . . . 11 . . . . . . . . . . . . . . . . . . . Packrat 2 | . . . . . . . . 1 1 . . . . . . . . . . . . . . . . . . . . . Assembler 2 | . . . . . . . . . . . 2 . . . . . . . . . . . . . . . . . . . Assembled 44 | . . 2 . . . . . . . . 39 . . . . . . . . . . . . . . . . . . 3 Golem 9 | . . . . . . . . . . . 9 . . . . . . . . . . . . . . . . . . . Thug 1 | . . . . . . . . . . . . . . . 1 . . . . . . . . . . . . . . . Commander 1 | . . . . . . . . 1 . . . . . . . . . . . . . . . . . . . . . . Best Kill Streak 38 | 5 4 2 3 7 4 3 2 4 5 . 38 1 5 3 11 4 16 12 6 9 3 10 3 13 5 10 2 5 14 11 Combat Bots Only 36 | . 3 2 3 5 4 3 1 4 5 . 36 1 5 3 11 2 7 7 6 9 3 10 3 7 4 10 2 5 10 10 Max Kills in Single Turn 26 | 1 1 2 1 3 3 2 2 3 2 . 26 1 3 2 3 1 5 2 1 4 2 5 2 6 3 4 1 2 2 4 Gunslinging . | . . . . . . . . . . . . . . . . . . . . . . . . . . . . . . . Exploded 26 | . 1 2 . 3 3 . . 3 2 . 26 . 1 . 3 . 3 . . 4 2 5 2 2 3 4 . 2 . 3 Melee 1 | . . . . . . . . . . . 1 . . . . . . 1 . . . . . . . . . . . 1 Uniques/NPCs Destroyed 2 | . . . . . . . . . . . 1 . . . . . . . . . . . . . . . . . . 1 Z-Imprinter (-7/Deep Caves) MAIN.C Shell (-1/Command) Combat | -11 -10 -10 -10 -8 -8 -8 -7 -7 -7 -7 -7 -6 -6 -6 -6 -6 -6 -5 -4 -4 -4 -4 -3 -3 -3 -3 -2 -2 -1 -1 -------- Run | Yrd Mat Min Sub Mat Gar Mat Fac Low Low Zio Dee Pro Fac Ext Cet Arc Hub Fac Fac Upp Upp War Pro Res Qua Sec Res Tes Acc Com Hostile Shots Fired 4221 | . 49 16 102 20 34 81 127 56 49 . 113 21 64 62 35 18 480 652 67 22 2 115 59 28 169 390 19 163 287 921 Missed 1259 | . 13 3 24 5 7 29 52 22 19 . 29 7 19 27 13 6 109 194 21 12 1 37 23 14 64 131 10 44 102 222 Intercepted 10 | . . . . . . . . . . . . . . . . . . . . . . . . . . . . . . 10 Damage Taken 52511 | . 481 253 1490 196 323 753 467 307 218 . 2341 69 434 304 435 273 6128 7376 727 160 18 859 482 235 1493 4581 219 1904 3393 16592 Core 5160 | . 37 28 94 18 . 89 7 17 35 . 334 23 13 54 53 . 409 962 27 11 18 . 33 23 82 794 . 144 420 1435 Absorbed by Shields 7269 | . . . . . 85 . 137 122 23 . 257 26 164 122 159 . 815 530 . . . 265 111 36 . 714 . . 1026 2677 Reduced by Siege Mode 731 | . . . . . . . . . . . . . . . . . 418 . . . . . . . . . . . . 313 Redirected to Shielding 938 | . . . . . . . . . . . 70 . . . 55 46 192 199 . . . . . . . . . . . 376 Ignored by Resistances 8738 | . . . . . . . . 19 34 . 85 44 108 . . . . 1441 . 34 4 229 123 56 1477 1643 33 1291 1403 714 Regen/Repaired (Parts) 1377 | . 101 . . . . . 222 . . . . . . . . . . . . . . 318 . . 308 136 292 . . . Core Remaining (%) 56 | 100 . . 36 . . 80 . . . . . 40 . . . . 37 3 . . . . 92 . . 30 . 91 . . Volleys Fired 2450 | 23 52 17 150 10 52 67 47 30 9 . 67 12 60 33 26 21 106 138 35 17 8 85 33 55 176 136 33 143 231 578 Largest 3 | 2 2 2 2 2 2 2 2 2 2 . 2 2 3 3 3 2 3 2 1 1 1 1 1 3 1 3 2 3 1 3 Hottest 264 | 40 100 100 160 99 99 116 116 98 78 . 126 50 90 90 170 65 104 123 69 49 69 69 69 119 49 233 138 75 120 264 Shots Fired 3201 | 46 99 23 219 18 68 131 89 53 18 . 102 15 119 81 60 32 212 187 35 18 9 85 33 68 176 215 39 145 230 576 Gun 600 | 46 94 11 20 7 15 101 37 . . . . . . . . . 71 . . . 1 . . . . . . . 41 156 Cannon 2445 | . . . 169 8 50 30 52 49 8 . 75 15 119 81 58 32 120 187 35 15 7 77 29 66 173 213 39 143 187 408 Launcher 109 | . 4 1 . 3 3 . . 4 10 . 27 . . . 2 . 16 . . 3 1 8 4 2 3 2 . 2 2 12 Special 47 | . 1 11 30 . . . . . . . . . . . . . 5 . . . . . . . . . . . . . Kinetic 463 | 46 94 11 55 8 40 46 . . . . 9 . . . . . 81 41 . . 1 . . . . . . . 22 9 Thermal 2414 | . 1 11 144 7 25 85 89 49 8 . 40 15 119 81 58 32 110 146 1 14 5 71 15 46 173 213 39 143 187 487 Explosive 109 | . 4 1 . 3 3 . . 4 10 . 27 . . . 2 . 16 . . 3 1 8 4 2 3 2 . 2 2 12 Electromagnetic 163 | . . . 20 . . . . . . . 26 . . . . . . . 34 1 2 6 14 20 . . . . 19 21 Entropic 47 | . . . . . . . . . . . . . . . . . . . . . . . . . . . . . . 47 Robot Hit Streak 85 | 8 10 4 15 4 21 11 9 11 12 . 16 1 7 13 8 19 24 30 9 9 3 7 11 21 37 18 10 21 23 85 Robot Miss Streak 8 | 3 5 2 4 3 4 4 3 3 2 . 2 3 3 1 3 2 2 3 2 2 . 2 1 1 8 3 2 3 6 6 Penetration Max 1 | . . . . . . . . . . . . . . . . . 1 . . . . . . . . . . . . . Secondary Targets 3 | . 2 . . . . 1 . . . . . . . . . . . . . . . . . . . . . . . . Max Gunslinging Chain 1 | . 1 . . . . 1 . . . . . . . . . . . . . . . . . . . . . . . . Capacitor 1243 | . . . . . . . . . . . . . . . . . . 19 34 15 2 42 29 45 173 . 20 135 206 523 Shots Hit Robots 2187 | 32 57 7 99 7 38 81 57 33 8 2 90 1 48 51 32 26 157 252 28 11 2 26 19 43 119 139 21 96 164 441 Core Hits 1285 | 11 34 5 29 11 16 33 22 22 11 . 148 1 23 16 23 11 126 114 11 18 4 48 14 29 55 87 10 60 75 218 Critical Kills 32 | . . . 4 . 1 1 . 1 . . . . 1 . 1 1 8 2 . . . . . . 1 2 1 . 5 3 Critical Parts Destroyed 11 | . 1 1 2 . . 1 . . . . . . . . . . 4 . . . . . . . . . . . . 2 Critical Strikes 84 | . 1 1 12 . 1 10 4 1 . . 1 . 1 . 1 1 13 22 . . . . . . 1 2 1 . 5 6 Burn 10 | . . . . . . 6 4 . . . . . . . . . . . . . . . . . . . . . . . Meltdown 21 | . . . 1 . . . . 1 . . . . 1 . 1 1 2 2 . . . . . . 1 2 1 . 5 3 Destroy 25 | . 1 1 10 . 1 2 . . . . . . . . . . 10 . . . . . . . . . . . . . Blast 6 | . . . 1 . . 2 . . . . . . . . . . 1 2 . . . . . . . . . . . . Corrupt 2 | . . . . . . . . . . . 1 . . . . . . . . . . . . . . . . . . 1 Impale 18 | . . . . . . . . . . . . . . . . . . 18 . . . . . . . . . . . . Detonate 2 | . . . . . . . . . . . . . . . . . . . . . . . . . . . . . . 2 Melee Attacks 254 | . . . . . 9 . 1 . 10 7 44 . . . . . . 168 . . . 15 . . . . . . . . Impact 32 | . . . . . . . . . 10 5 . . . . . . . 17 . . . . . . . . . . . . Slashing 44 | . . . . . . . . . . . 44 . . . . . . . . . . . . . . . . . . . Piercing 166 | . . . . . . . . . . . . . . . . . . 151 . . . 15 . . . . . . . . Sneak Attacks 27 | . . . . . 9 . 1 . . 2 . . . . . . . 15 . . . . . . . . . . . . Combat Hostiles 1 | . . . . . . . . . . . . . . . . . . 1 . . . . . . . . . . . . Follow-up Attacks 17 | . . . . . . . . . . . . . . . . . . 17 . . . . . . . . . . . . Damage Inflicted 113931 | 408 1109 211 2051 528 1047 1653 1407 1558 702 . 7696 56 2762 2785 2255 1270 8884 10662 738 1779 326 5006 1439 3022 6291 7621 941 6070 8146 25508 Guns 12280 | 408 749 90 218 76 203 1306 584 . . . . . . . . . 1513 . . . . . . . . . . . 1154 5979 Cannons 65590 | . . . 1796 65 494 347 800 886 80 . 1182 56 2525 2725 2003 1270 3995 5564 738 403 50 912 646 1767 5328 6267 941 4956 6142 13652 Explosions 28618 | . 343 117 37 387 350 . . 672 622 . 4608 . 226 . 252 . 3365 58 . 1376 276 4094 793 1106 963 1312 . 1057 741 5863 Melee 6915 | . . . . . . . . . . . 1906 . . . . . . 5009 . . . . . . . . . . . . Ramming 528 | . 17 4 . . . . 23 . . . . . 11 60 . . 11 31 . . . . . 149 . 42 . 57 109 14 Kinetic 5836 | 408 749 90 250 65 160 545 . . . . . . . . . . 1749 760 . . . . . . . . . . 870 190 Thermal 66294 | . . . 1583 76 537 1108 1384 886 80 . 630 56 2751 2725 2003 1270 3759 4804 . 403 . 773 339 1240 5328 6267 941 4956 6491 15904 Explosive 27690 | . 343 117 . 387 350 . . 672 622 . 4608 . . . 252 . 3365 58 . 1376 238 4016 793 1106 963 1312 . 1057 392 5663 Electromagnetic 3357 | . . . 218 . . . . . . . 552 . . . . . . . 738 . 88 217 307 527 . . . . 284 426 Impact 580 | . . . . . . . . . . . . . . . . . . 580 . . . . . . . . . . . . Slashing 1906 | . . . . . . . . . . . 1906 . . . . . . . . . . . . . . . . . . . Piercing 4429 | . . . . . . . . . . . . . . . . . . 4429 . . . . . . . . . . . . Entropic 3311 | . . . . . . . . . . . . . . . . . . . . . . . . . . . . . . 3311 Highest Corruption 78 | . . . . . . 5 . . . . . . 1 2 2 2 28 8 10 10 10 10 11 . 5 8 . 7 2 78 Average Corruption 5 | . . . . . . 5 . . . . . . 1 1 2 1 20 3 9 10 10 10 9 . 1 3 . 5 1 14 Corruption Purged 32 | . . . . . . . . . . . . . . . . 2 . . . . . . . . . . . . . 30 Corruption Blocked 31 | . . . . . 6 . . . . . . . . . . . . . . . . 5 . . . . 3 . . 17 Effects 312 | . . . . . . 15 . . . . . . 11 19 6 3 14 45 7 23 10 2 . . 10 32 . 23 5 87 Message Errors 59 | . . . . . . 1 . . . . . . 2 4 1 1 1 10 1 6 2 1 . . 1 6 . 3 . 19 Matter Fused 78 | . . . . . . 4 . . . . . . 4 10 1 1 3 15 1 3 1 . . . 4 10 . 7 2 12 Heat Flow Errors 31 | . . . . . . . . . . . . . . . 1 . . 2 2 7 1 . . . 4 4 . 2 . 8 Energy Discharges 39 | . . . . . . 4 . . . . . . . 2 1 . 3 6 . 4 2 1 . . . 5 . 1 . 10 Parts Rejected 5 | . . . . . . . . . . . . . . . . . . . 1 . . . . . . 1 . 1 1 1 Parts Fused 4 | . . . . . . . . . . . . . 1 . . . . . . . . . . . . . . 2 . 1 Data Loss (minor) 39 | . . . . . . 3 . . . . . . 2 2 2 1 4 4 2 1 3 . . . . 3 . 2 . 10 Data Loss (major) 11 | . . . . . . 3 . . . . . . 1 . . . . 1 . 1 . . . . . . . 2 1 2 Misfires 8 | . . . . . . . . . . . . . 1 1 . . 1 3 . 1 1 . . . . . . . . . Alerts 4 | . . . . . . . . . . . . . . . . . . 1 . . . . . . 1 2 . . . . Misdirections 1 | . . . . . . . . . . . . . . . . . . . . . . . . . . . . . . 1 Weapon Failures 33 | . . . . . . . . . . . . . . . . . 2 3 . . . . . . . 1 . 3 1 23 Overload Shots 14 | . . . . . . . . . . . . . . . 7 . . . . . . . . . . 7 . . . . Effects 2 | . . . . . . . . . . . . . . . 2 . . . . . . . . . . . . . . . Energy Bleed 2 | . . . . . . . . . . . . . . . 2 . . . . . . . . . . . . . . . Overflow Damage 4718 | . . 4 . 42 23 . 12 13 73 . 79 . 199 62 63 13 329 1057 . 208 . 131 16 158 477 257 20 354 331 797 Projectiles 2640 | . . . . . . . 12 13 23 . 29 . 199 57 63 13 226 198 . 46 . 55 . 59 364 197 20 294 308 464 Explosions 1123 | . . 4 . 42 23 . . . 50 . 41 . . . . . 103 . . 162 . 76 16 29 113 60 . 48 23 333 Melee 955 | . . . . . . . . . . . 9 . . 5 . . . 859 . . . . . 70 . . . 12 . . Knockbacks 35 | . . . 2 . 1 2 . . . . . . . 1 . . 3 22 . . . . . 1 . 1 . 1 . 1 Impact 9 | . . . . . . . . . . . . . . 1 . . . 5 . . . . . 1 . 1 . 1 . . Kinetic 19 | . . . 2 . 1 2 . . . . . . . . . . 3 10 . . . . . . . . . . . 1 Secondary 7 | . . . . . . . . . . . . . . . . . . 7 . . . . . . . . . . . . Self-Inflicted Damage 1052 | . . 40 . 26 . . . . 29 . 145 . . . . . 132 95 . . . 88 . . 100 85 . 36 165 111 Shots 23 | . . 1 . 1 . . . . 2 . 3 . . . . . 5 1 . . . 2 . . 2 1 . 1 2 2 Rammed 9 | . 3 1 . . . . 3 . . . . . . . . . 1 1 . . . . . . . . . . . . Targets Rammed 34 | . 3 1 . . . . 3 . . . . . 1 6 . . 1 7 . . . . . 4 . 1 . 2 3 2 Kicked 25 | . . . . . . . . . . . . . 1 6 . . . 6 . . . . . 4 . 1 . 2 3 2 Crushed . | . . . . . . . . . . . . . . . . . . . . . . . . . . . . . . . Highest Temperature 502 | . 20 112 502 114 216 197 216 68 8 . 174 . 422 . 241 . 33 162 261 262 254 42 261 202 274 364 200 179 198 198 Average Temperature 98 | . 5 48 63 43 85 58 69 27 5 . 33 . 69 . 50 . 9 55 109 97 109 13 85 55 71 86 96 95 146 136 Received Heat Transfer 8926 | . 240 9 807 27 164 252 120 98 72 . 410 . 42 57 12 36 1698 1903 225 36 . 176 147 53 186 489 27 27 202 1411 Effects 6 | . . . 3 . . . . . . . . . . . . . . . . . . . . . 2 1 . . . . Interference 3 | . . . 1 . . . . . . . . . . . . . . . . . . . . . 2 . . . . . Short Circuit 2 | . . . 1 . . . . . . . . . . . . . . . . . . . . . . 1 . . . . Damage (minor) 1 | . . . 1 . . . . . . . . . . . . . . . . . . . . . . . . . . . Siege Activations 17 | . . . . . . . . . . . . . . . . 4 12 . . . . . . . . . . . . 1 Total Turns 442 | . . . . . . . . . . . . . . . . 44 250 . . . . . . . . . . . . 148 Longest Duration 148 | . . . . . . . . . . . . . . . . 25 80 . . . . . . . . . . . . 148 Robots Corrupted 16 | . . . . . . . . . . . 2 . . . . . . . 5 . . 1 2 1 . . . . 2 3 Combat Hostiles 15 | . . . . . . . . . . . 2 . . . . . . . 5 . . 1 2 . . . . . 2 3 Parts Fried 27 | . . . . . . . . . . . 3 . . . . . 1 4 4 . . 2 1 3 2 . . . 2 5 Impact Corruptions 11 | . . . . . . . . . . . . . . 1 . . . 6 . . . . . 2 . . . 2 . . Robots Melted 28 | . . . 1 . 1 1 . 1 . . . . 1 . 1 1 3 2 . . . . . . 1 3 1 . 7 4 Combat Hostiles 22 | . . . 1 . . 1 . . . . . . 1 . 1 1 2 2 . . . . . . 1 3 1 . 6 2 Parts Melted 129 | . . . 4 1 1 5 12 4 . . 4 . 1 1 2 3 5 7 . 1 . . . 2 8 13 2 3 24 26 Heat Transferred 44173 | . . . 2664 100 709 2347 2442 1210 111 . 656 25 975 925 650 475 1110 2856 . 200 . 344 200 650 3169 4927 598 2399 4992 9439 Parts Sabotaged 5 | . . . . . . . . . . . . . . . . . . 1 . . . . . . . 1 . . . 3 Parts Stolen . | . . . . . . . . . . . . . . . . . . . . . . . . . . . . . . . Parts Stripped . | . . . . . . . . . . . . . . . . . . . . . . . . . . . . . . . Power Chain Reactions 10 | . . . 1 . . . . . . . . . . . . . . . . . 1 4 . 2 . . . . 2 . Alert | -11 -10 -10 -10 -8 -8 -8 -7 -7 -7 -7 -7 -6 -6 -6 -6 -6 -6 -5 -4 -4 -4 -4 -3 -3 -3 -3 -2 -2 -1 -1 ------- Run | Yrd Mat Min Sub Mat Gar Mat Fac Low Low Zio Dee Pro Fac Ext Cet Arc Hub Fac Fac Upp Upp War Pro Res Qua Sec Res Tes Acc Com Peak Influence 2159 | 50 290 139 . 982 1806 1135 471 . . . . . 277 875 719 345 1475 1933 1476 . . . . 349 869 1690 977 1211 1415 2159 Initial 1100 | . 32 53 . 687 638 880 419 . . . . . . 86 442 207 . 722 1100 . . . . 36 111 452 897 396 726 905 Average 660 | 22 139 43 . 764 1165 931 288 . . . . . 173 248 564 68 477 1246 1214 . . . . 83 441 1114 874 797 989 1411 Maximum Alert Level 5 | . 1 . . 3 5 4 2 . . . . . 1 3 3 1 4 5 4 . . . . 1 3 5 3 4 4 5 Low Security (%) 30 | 100 85 100 . . . . 13 . . . . . 56 51 . 85 52 . . . . . . 93 9 . . . . . Level 1 13 | . 14 . . . . . 69 . . . . . 43 31 1 14 11 . . . . . . 6 33 . . 1 . . Level 2 7 | . . . . 33 5 . 17 . . . . . . 4 68 . 6 . . . . . . . 34 7 . 31 7 . Level 3 26 | . . . . 66 35 89 . . . . . . . 11 29 . 10 36 22 . . . . . 22 44 100 59 56 41 Level 4 15 | . . . . . 48 10 . . . . . . . . . . 19 48 77 . . . . . . 37 . 7 35 23 Level 5 6 | . . . . . 10 . . . . . . . . . . . . 9 . . . . . . . 9 . . . 34 High Security . | . . . . . . . . . . . . . . . . . . 5 . . . . . . . . . . . . Max Security . | . . . . . . . . . . . . . . . . . . . . . . . . . . . . . . . Squads Dispatched 136 | . 4 . . 2 . 3 5 . . . . . 5 4 . . 15 15 5 . . . . 8 8 16 1 12 11 22 Investigation 19 | . 4 . . 1 . 2 2 . . . . . . . . . 3 . . . . . . 3 1 1 . . . 2 Extermination 27 | . . . . . . . 2 . . . . . 2 . . . 2 3 . . . . . . 3 3 . 2 3 7 Reinforcement 33 | . . . . 1 . 1 1 . . . . . . 3 . . 5 4 1 . . . . 5 2 4 . . 3 3 Assault 35 | . . . . . . . . . . . . . . 1 . . 3 8 2 . . . . . 2 6 . 1 2 10 Garrison 11 | . . . . . . . . . . . . . 3 . . . 2 . 2 . . . . . . 1 . 3 . . Intercept 11 | . . . . . . . . . . . . . . . . . . . . . . . . . . 1 1 6 3 . Searches Triggered . | . . . . . . . . . . . . . . . . . . . . . . . . . . . . . . . Construction Impeded 5 | . . . . . . . . . . . . . . 1 . . 1 1 . . . . . . . 1 . . 1 . Haulers Reinforced 6 | . . . . . . . 1 . . . . . . . . . . 1 . . . . . 3 . . . . 1 . Active Scanning Responses . | . . . . . . . . . . . . . . . . . . . . . . . . . . . . . . . Cargo Convoy Interrupts 1 | . . . . . . . . . . . . . 1 . . . . . . . . . . . . . . . . . Stealth | -11 -10 -10 -10 -8 -8 -8 -7 -7 -7 -7 -7 -6 -6 -6 -6 -6 -6 -5 -4 -4 -4 -4 -3 -3 -3 -3 -2 -2 -1 -1 --------- Run | Yrd Mat Min Sub Mat Gar Mat Fac Low Low Zio Dee Pro Fac Ext Cet Arc Hub Fac Fac Upp Upp War Pro Res Qua Sec Res Tes Acc Com Distress Signals 40 | . 1 . . 1 . 2 1 . . . . . . 1 2 . 4 5 2 . . . . 2 . 6 8 . 3 2 Communications Jammed 107 | . . . . . . . . . . . . . . . . . . . . . . . . . . 21 9 77 . . Distress Signals 107 | . . . . . . . . . . . . . . . . . . . . . . . . . . 21 9 77 . . Times Spotted 1022 | . 19 15 54 8 14 23 17 18 5 . 57 2 18 40 18 12 70 100 19 12 1 95 13 17 38 103 8 38 59 129 Peak Tracking Total 37 | . 3 7 5 4 5 3 3 4 5 . 37 1 3 7 9 2 15 11 6 7 1 16 4 8 4 14 3 5 8 11 Tactical Retreats 64 | . . 4 10 1 2 1 . 2 . . 3 . 1 1 . . 1 13 1 . . 2 4 1 1 5 1 . 5 5 Traps | -11 -10 -10 -10 -8 -8 -8 -7 -7 -7 -7 -7 -6 -6 -6 -6 -6 -6 -5 -4 -4 -4 -4 -3 -3 -3 -3 -2 -2 -1 -1 ------- Run | Yrd Mat Min Sub Mat Gar Mat Fac Low Low Zio Dee Pro Fac Ext Cet Arc Hub Fac Fac Upp Upp War Pro Res Qua Sec Res Tes Acc Com Traps Triggered 19 | . 2 . 2 . 4 . . . . . . . . 3 . . . . . . . . . . 1 2 . 2 . 3 Indirectly . | . . . . . . . . . . . . . . . . . . . . . . . . . . . . . . . Trap Hack Attempts . | . . . . . . . . . . . . . . . . . . . . . . . . . . . . . . . Triggered . | . . . . . . . . . . . . . . . . . . . . . . . . . . . . . . . Disarmed . | . . . . . . . . . . . . . . . . . . . . . . . . . . . . . . . Reprogrammed . | . . . . . . . . . . . . . . . . . . . . . . . . . . . . . . . Reused . | . . . . . . . . . . . . . . . . . . . . . . . . . . . . . . . Traps Extracted . | . . . . . . . . . . . . . . . . . . . . . . . . . . . . . . . Installed . | . . . . . . . . . . . . . . . . . . . . . . . . . . . . . . . Triggered 20 | . . . . . . . . . 1 . . . 3 1 . . 1 1 . . . 12 . . . . . . . 1 Machines | -11 -10 -10 -10 -8 -8 -8 -7 -7 -7 -7 -7 -6 -6 -6 -6 -6 -6 -5 -4 -4 -4 -4 -3 -3 -3 -3 -2 -2 -1 -1 ---------- Run | Yrd Mat Min Sub Mat Gar Mat Fac Low Low Zio Dee Pro Fac Ext Cet Arc Hub Fac Fac Upp Upp War Pro Res Qua Sec Res Tes Acc Com Machines Disabled 92 | . 3 1 1 . 6 3 2 . . . 4 . 4 4 1 . 12 2 1 1 1 3 . 1 14 13 . 8 1 6 Max in Single Turn 3 | . 2 1 1 . 1 1 1 . . . 1 . 2 1 1 . 3 1 1 1 1 1 . 1 3 2 . 1 1 1 Garrison Access 5 | . . . . . . . 1 . . . . . . . . . 1 . 1 . . . . . . 1 1 . . . Garrison Relay 5 | . . . . . 5 . . . . . . . . . . . . . . . . . . . . . . . . . Phase Generator 1 | . . . . . . . . . . . . . . . . . . . . . . . . . . . . . . 1 Network Hub 1 | . . . . . . . . . . . . . . . . . 1 . . . . . . . . . . . . . Machines Repaired . | . . . . . . . . . . . . . . . . . . . . . . . . . . . . . . . Machines Dismantled . | . . . . . . . . . . . . . . . . . . . . . . . . . . . . . . . Machines Sabotaged 1 | . . . . . . . . . . . . . . . . . 1 . . . . . . . . . . . . . Overloaded Fab Kills . | . . . . . . . . . . . . . . . . . . . . . . . . . . . . . . . Hacking | -11 -10 -10 -10 -8 -8 -8 -7 -7 -7 -7 -7 -6 -6 -6 -6 -6 -6 -5 -4 -4 -4 -4 -3 -3 -3 -3 -2 -2 -1 -1 --------- Run | Yrd Mat Min Sub Mat Gar Mat Fac Low Low Zio Dee Pro Fac Ext Cet Arc Hub Fac Fac Upp Upp War Pro Res Qua Sec Res Tes Acc Com Machines Accessed 132 | . 9 . 2 2 3 6 16 1 . . . . 7 13 . . 7 4 1 . . 1 . 5 8 15 3 9 7 13 Terminals 89 | . 6 . . 1 3 5 8 . . . . . 3 12 . . 6 1 1 . . . . 3 6 11 . 4 7 12 Fabricators 5 | . . . . . . . 2 . . . . . 2 . . . . . . . . . . . . . . 1 . . Repair Stations 10 | . 1 . . . . . 2 . . . . . . . . . . 1 . . . . . . 1 2 1 2 . . Recycling Units 12 | . 2 . . . . 1 2 . . . . . 1 1 . . . 2 . . . . . 1 . . 1 . . 1 Scanalyzers 5 | . . . . . . . . . . . . . . . . . . . . . . . . 1 1 2 . 1 . . Garrison Access 7 | . . . . 1 . . 2 . . . . . 1 . . . 1 . . . . . . . . . 1 1 . . Total Hacks 350 | . 26 . 4 5 7 20 39 2 . . . . 21 27 . . 16 13 4 . . 1 . 20 19 35 8 29 19 35 Successful 146 | . 16 . 4 2 4 8 19 2 . . . . 9 15 . . 5 5 1 . . 1 . 8 5 17 4 10 5 6 Failed 204 | . 10 . . 3 3 12 20 . . . . . 12 12 . . 11 8 3 . . . . 12 14 18 4 19 14 29 Catastrophic 53 | . 1 . . . . 1 7 . . . . . 5 1 . . 2 2 2 . . . . 3 2 5 . 3 5 14 Database Lockouts . | . . . . . . . . . . . . . . . . . . . . . . . . . . . . . . . Manual 134 | . 11 . . 2 3 6 14 . . . . . 14 7 . . 8 4 . . . . . 12 8 8 . 12 3 22 Terminals 234 | . 18 . . 2 7 16 21 . . . . . 8 26 . . 14 2 4 . . . . 16 13 23 . 15 19 30 Fabricators 13 | . . . . . . . 4 . . . . . 6 . . . . . . . . . . . . . . 3 . . Repair Stations 31 | . 4 . . . . . 6 . . . . . . . . . . 3 . . . . . . 5 5 2 6 . . Recycling Units 39 | . 4 . . . . 4 6 . . . . . 6 1 . . . 8 . . . . . 3 . . 2 . . 5 Scanalyzers 12 | . . . . . . . . . . . . . . . . . . . . . . . . 1 1 7 . 3 . . Garrison Access 14 | . . . . 3 . . 2 . . . . . 1 . . . 2 . . . . . . . . . 4 2 . . Terminal Hacks 83 | . 8 . 4 1 3 7 5 2 . . . . 1 13 . . 4 . 1 . . 1 . 7 3 12 . 4 5 2 Record 7 | . . . 3 . . . . 2 . . . . . . . . . . . . . 1 . . 1 . . . . . Robot Analysis 5 | . 2 . . . . . . . . . . . . . . . . . . . . . . 1 . 1 . 1 . . Prototype ID Bank 2 | . . . . . . . . . . . . . . 1 . . 1 . . . . . . . . . . . . . Open Door 14 | . . . . . . . . . . . . . . 6 . . . . . . . . . . 1 3 . . 3 1 Level Access Points 2 | . . . . . . . . . . . . . . . . . 1 . . . . . . . 1 . . . . . Branch Access Points 3 | . . . . . . . . . . . . . 1 . . . . . 1 . . . . 1 . . . . . . Emergency Access Points 1 | . . . . . 1 . . . . . . . . . . . . . . . . . . . . . . . . . Terminal Index 1 | . . . . . . . . . . . . . . . . . . . . . . . . . . . . . 1 . Repair Station Index 1 | . 1 . . . . . . . . . . . . . . . . . . . . . . . . . . . . . Alert Level 9 | . . . . . . 3 1 . . . . . . 1 . . . . . . . . . 1 . 2 . 1 . . Unreport Threat 6 | . . . . . . 2 1 . . . . . . . . . . . . . . . . . . 2 . . 1 . Locate Traps 10 | . 2 . . . . 1 1 . . . . . . 4 . . . . . . . . . 1 . 1 . . . . Maintenance Status 1 | . . . . . . . . . . . . . . . . . . . . . . . . 1 . . . . . . Hauler Manifests 1 | . . . . . . . 1 . . . . . . . . . . . . . . . . . . . . . . . Zone Layout 16 | . 3 . . 1 . 1 1 . . . . . . 1 . . 2 . . . . . . 2 . 3 . 2 . . Garrison Registry 1 | . . . . . 1 . . . . . . . . . . . . . . . . . . . . . . . . . Security Stations 1 | . . . . . 1 . . . . . . . . . . . . . . . . . . . . . . . . . Derelict Proto ID Bank 1 | . . . 1 . . . . . . . . . . . . . . . . . . . . . . . . . . . Disengage Seal 1 | . . . . . . . . . . . . . . . . . . . . . . . . . . . . . . 1 Fabricator Hacks 4 | . . . . . . . 2 . . . . . 1 . . . . . . . . . . . . . . 1 . . Network Status 3 | . . . . . . . 1 . . . . . 1 . . . . . . . . . . . . . . 1 . . Build 1 | . . . . . . . 1 . . . . . . . . . . . . . . . . . . . . . . . Repair Station Hacks 14 | . 2 . . . . . 5 . . . . . . . . . . 1 . . . . . . 1 2 2 1 . . Scan Component 9 | . 1 . . . . . 3 . . . . . . . . . . 1 . . . . . . 1 1 1 1 . . Repair 5 | . 1 . . . . . 2 . . . . . . . . . . . . . . . . . . 1 1 . . . Recycling Unit Hacks 11 | . 2 . . . . . 2 . . . . . 2 . . . . 2 . . . . . . . . 1 . . 2 Retrieve Matter 1 | . . . . . . . . . . . . . . . . . . . . . . . . . . . . . . 1 Retrieve Components 10 | . 2 . . . . . 2 . . . . . 2 . . . . 2 . . . . . . . . 1 . . 1 Scanalyzer 5 | . . . . . . . . . . . . . . . . . . . . . . . . 1 1 2 . 1 . . Insert Component 5 | . . . . . . . . . . . . . . . . . . . . . . . . 1 1 2 . 1 . . Garrison Access Hacks 3 | . . . . 1 . . 1 . . . . . . . . . . . . . . . . . . . 1 . . . Unlock Access 1 | . . . . 1 . . . . . . . . . . . . . . . . . . . . . . . . . . Seal Access 2 | . . . . . . . 1 . . . . . . . . . . . . . . . . . . . 1 . . . Unauthorized Hacks 26 | . 4 . . . 1 1 4 . . . . . 5 2 . . 1 2 . . . . . . . 1 . 3 . 2 Terminals 15 | . 2 . . . 1 1 3 . . . . . 1 2 . . 1 1 . . . . . . . . . 1 . 2 Assimilate 2 | . . . . . . . 1 . . . . . . . . . . . . . . . . . . . . 1 . . Botnet 6 | . 1 . . . 1 . 1 . . . . . . . . . . 1 . . . . . . . . . . . 2 Disrupt 1 | . . . . . . . . . . . . . . 1 . . . . . . . . . . . . . . . . Operators 5 | . 1 . . . . 1 1 . . . . . 1 1 . . . . . . . . . . . . . . . . Sabotage 1 | . . . . . . . . . . . . . . . . . 1 . . . . . . . . . . . . . Fabricators 5 | . . . . . . . 1 . . . . . 3 . . . . . . . . . . . . . . 1 . . Prioritize 1 | . . . . . . . . . . . . . 1 . . . . . . . . . . . . . . . . . Liberate 2 | . . . . . . . . . . . . . 1 . . . . . . . . . . . . . . 1 . . Haulers 2 | . . . . . . . 1 . . . . . 1 . . . . . . . . . . . . . . . . . Repair Stations . | . . . . . . . . . . . . . . . . . . . . . . . . . . . . . . . Recycling Units 4 | . 2 . . . . . . . . . . . 1 . . . . 1 . . . . . . . . . . . . Reject 2 | . . . . . . . . . . . . . 1 . . . . 1 . . . . . . . . . . . . Tunnel 2 | . 2 . . . . . . . . . . . . . . . . . . . . . . . . . . . . . Scanalyzers 2 | . . . . . . . . . . . . . . . . . . . . . . . . . . 1 . 1 . . Researchers 2 | . . . . . . . . . . . . . . . . . . . . . . . . . . 1 . 1 . . Garrison Access . | . . . . . . . . . . . . . . . . . . . . . . . . . . . . . . . Data Cores Recovered 2 | . . . . . . . . . . . . . . . . . . 1 . . . . . . 1 . . . . . Used . | . . . . . . . . . . . . . . . . . . . . . . . . . . . . . . . Hacking Detections 102 | . 7 . . 2 2 6 14 . . . . . 7 9 . . 6 3 1 . . . . 4 5 9 2 9 5 11 Full Trace Events 11 | . 1 . . 1 . 2 2 . . . . . . . . . 2 . . . . . . . 1 1 . . . 1 Feedback Events . | . . . . . . . . . . . . . . . . . . . . . . . . . . . . . . . Feedback Blocked . | . . . . . . . . . . . . . . . . . . . . . . . . . . . . . . . Robot Schematics Acquired . | . . . . . . . . . . . . . . . . . . . . . . . . . . . . . . . Robots Built 4 | . . . . . . . 4 . . . . . . . . . . . . . . . . . . . . . . . Authchips . | . . . . . . . . . . . . . . . . . . . . . . . . . . . . . . . Time 134 | . . . . . . . 134 . . . . . . . . . . . . . . . . . . . . . . . Total Robot Build Rating 16 | . . . . . . . 16 . . . . . . . . . . . . . . . . . . . . . . . Part Schematics Acquired . | . . . . . . . . . . . . . . . . . . . . . . . . . . . . . . . Parts Built . | . . . . . . . . . . . . . . . . . . . . . . . . . . . . . . . Authchips . | . . . . . . . . . . . . . . . . . . . . . . . . . . . . . . . Time . | . . . . . . . . . . . . . . . . . . . . . . . . . . . . . . . Total Part Build Rating . | . . . . . . . . . . . . . . . . . . . . . . . . . . . . . . . Parts Repaired 4 | . 1 . . . . . 2 . . . . . . . . . . . . . . . . . . . 1 . . . Time 298 | . 26 . . . . . 56 . . . . . . . . . . . . . . . . . . 108 108 . . . Parts Recycled . | . . . . . . . . . . . . . . . . . . . . . . . . . . . . . . . Recycled Matter . | . . . . . . . . . . . . . . . . . . . . . . . . . . . . . . . Retrieved Matter . | . . . . . . . . . . . . . . . . . . . . . . . . . . . . . . . Retrieved Components 36 | . 1 . . . . . 4 . . . . . 15 . . . . 12 . . . . . . . . 3 . . 1 Parts Scanalyzed 1 | . . . . . . . . . . . . . . . . . . . . . . . . . . 1 . . . . Part Schematics Acquired . | . . . . . . . . . . . . . . . . . . . . . . . . . . . . . . . Parts Damaged 1 | . . . . . . . . . . . . . . . . . . . . . . . . . . 1 . . . . Bothacking | -11 -10 -10 -10 -8 -8 -8 -7 -7 -7 -7 -7 -6 -6 -6 -6 -6 -6 -5 -4 -4 -4 -4 -3 -3 -3 -3 -2 -2 -1 -1 ------------ Run | Yrd Mat Min Sub Mat Gar Mat Fac Low Low Zio Dee Pro Fac Ext Cet Arc Hub Fac Fac Upp Upp War Pro Res Qua Sec Res Tes Acc Com Used RIF Installer . | . . . . . . . . . . . . . . . . . . . . . . . . . . . . . . . Robots Hacked 3 | . . . . . . . 1 . . 2 . . . . . . . . . . . . . . . . . . . . Non-combat 1 | . . . . . . . 1 . . . . . . . . . . . . . . . . . . . . . . . Combat 2 | . . . . . . . . . . 2 . . . . . . . . . . . . . . . . . . . . Robot Hacks Applied 3 | . . . . . . . 1 . . 2 . . . . . . . . . . . . . . . . . . . . parse_system 2 | . . . . . . . . . . 2 . . . . . . . . . . . . . . . . . . . . find_chute 1 | . . . . . . . 1 . . . . . . . . . . . . . . . . . . . . . . . Relay Couplers Released 36 | . . . . . 25 . . . . . . . . . . . 3 . 2 . . . . . . 3 . . 3 . Machine Destruction 27 | . . . . . 22 . . . . . . . . . . . 3 . 2 . . . . . . . . . . . Programmers 9 | . . . . . 3 . . . . . . . . . . . . . . . . . . . . 3 . . 3 . Fabnet Peak Effective % . | . . . . . . . . . . . . . . . . . . . . . . . . . . . . . . . Robots Rewired 20 | . . . . . 6 . . . . . . . . 14 . . . . . . . . . . . . . . . . Allies Hacked . | . . . . . . . . . . . . . . . . . . . . . . . . . . . . . . . Hacks Repelled . | . . . . . . . . . . . . . . . . . . . . . . . . . . . . . . . Allies | -11 -10 -10 -10 -8 -8 -8 -7 -7 -7 -7 -7 -6 -6 -6 -6 -6 -6 -5 -4 -4 -4 -4 -3 -3 -3 -3 -2 -2 -1 -1 -------- Run | Yrd Mat Min Sub Mat Gar Mat Fac Low Low Zio Dee Pro Fac Ext Cet Arc Hub Fac Fac Upp Upp War Pro Res Qua Sec Res Tes Acc Com Total Allies 73 | . . . . . 6 . 5 . . . . . 2 25 . . 5 . . . . . . . . . . 4 . 26 Largest Group 14 | . . . . . 6 1 4 2 1 1 1 1 2 13 8 . 3 1 . . . . . . . . . 3 3 14 Highest-Rated Group 387 | . . . . . 84 14 48 38 26 26 26 26 82 387 222 . 327 109 . . . . . . . . . 174 174 199 Highest-Rated Ally 159 | . . . . . 14 14 26 26 26 26 26 26 41 159 39 . 109 109 . . . . . . . . . 58 58 15 Total Orders 25 | . . . . . . . 2 10 2 . 5 . . . . . . . 2 . . . . . . . . . 4 . STAY 10 | . . . . . . . 1 5 1 . 3 . . . . . . . . . . . . . . . . . . . FOLLOW 9 | . . . . . . . 1 5 1 . 2 . . . . . . . . . . . . . . . . . . . EXPLORE 6 | . . . . . . . . . . . . . . . . . . . 2 . . . . . . . . . 4 . Ally Attacks 436 | . . . . . 8 1 47 4 . . . . 1 158 31 . 36 10 . . . . . . . . . . 3 137 Total Damage 8507 | . . . . . . . 513 54 . . . . 73 3667 687 . 567 311 . . . . . . . . . . 45 2590 Kills 55 | . . . . . . . 7 . . . . . 1 27 1 . 4 4 . . . . . . . . . . . 11 Allies Corrupted 3 | . . . . . . . . . . . . . . . . . 1 . 1 . . . . . . . . . . 1 Allies Melted 3 | . . . . . . . . 1 . . . . . . . . 1 . . . . 1 . . . . . . . . Field Lobotomies 5 | . . . . . . . . . . . . . . . . . 5 . . . . . . . . . . . . . Intel | -11 -10 -10 -10 -8 -8 -8 -7 -7 -7 -7 -7 -6 -6 -6 -6 -6 -6 -5 -4 -4 -4 -4 -3 -3 -3 -3 -2 -2 -1 -1 ------- Run | Yrd Mat Min Sub Mat Gar Mat Fac Low Low Zio Dee Pro Fac Ext Cet Arc Hub Fac Fac Upp Upp War Pro Res Qua Sec Res Tes Acc Com Robot Analysis Total 5 | . 2 . . . . . . . . . . . . . . . . . . . . . . 1 . 1 . 1 . . Derelict Logs Recovered 10 | . . 1 1 . . . . 2 2 1 . 2 . . . . . . . 1 . . . . . . . . . . Drone Launches 6 | . . . . . . . . . . . . . . . . . . . 2 . . . . . . . . . 4 . Drone Recoveries . | . . . . . . . . . . . . . . . . . . . . . . . . . . . . . . . Exploration | -11 -10 -10 -10 -8 -8 -8 -7 -7 -7 -7 -7 -6 -6 -6 -6 -6 -6 -5 -4 -4 -4 -4 -3 -3 -3 -3 -2 -2 -1 -1 ------------- Run | Yrd Mat Min Sub Mat Gar Mat Fac Low Low Zio Dee Pro Fac Ext Cet Arc Hub Fac Fac Upp Upp War Pro Res Qua Sec Res Tes Acc Com Turns Passed 49718 | 274 1429 957 6433 230 1391 765 1396 2074 1999 1980 6095 533 1818 1650 467 2701 1105 2136 382 622 344 1477 1154 812 1681 1602 807 947 1082 3375 Spaces Moved 23050 | 89 683 559 3024 100 683 319 722 997 820 843 2421 239 753 658 192 197 405 924 171 345 274 871 429 529 1070 1058 496 636 581 1962 Core 128 | 4 . . . . . . . . . . . . . . . 101 2 . . . . . . . . . . . . 21 Treads 9561 | 85 635 26 2698 . 108 319 722 997 820 843 1558 . . . 88 96 372 . 25 . . . . . . . . . . 169 Legs 11451 | . . . . . . . . . . . 863 239 753 658 104 . 31 924 146 345 274 871 429 529 1070 765 496 636 546 1772 Wheels 1582 | . 48 533 326 100 575 . . . . . . . . . . . . . . . . . . . . . . . . . Hover . | . . . . . . . . . . . . . . . . . . . . . . . . . . . . . . . Flight . | . . . . . . . . . . . . . . . . . . . . . . . . . . . . . . . Fastest Speed 50 | 50 145 145 145 177 160 160 156 152 232 232 152 210 210 210 160 160 100 106 112 116 116 116 124 120 120 117 108 108 108 50 Average Speed 175 | 155 174 149 191 177 175 160 158 194 232 232 207 210 210 210 187 1282 159 138 151 116 116 117 124 128 124 134 122 110 116 120 Slowest Speed 2350 | 160 240 240 260 177 660 160 245 232 232 232 240 210 210 210 210 2350 850 235 320 116 116 178 124 177 180 178 182 180 180 190 Overloaded Moves . | . . . . . . . . . . . . . . . . . . . . . . . . . . . . . . . Propulsion Burnouts . | . . . . . . . . . . . . . . . . . . . . . . . . . . . . . . . Robots Hopped 5 | . . . . . . . . . . . . . . 1 . . . . . . . . . . . . . . . 4 Cave-ins Triggered . | . . . . . . . . . . . . . . . . . . . . . . . . . . . . . . . Teleports 3 | . . . . . . . . . . . . . . . . . . . . . . . . . 1 2 . . . . Microwarps 30 | . . . . . . . . . . . . . . . . . . . . . . . . . . 25 . . 5 . Exploration Rate (%) 58 | 6 99 96 92 13 76 38 26 92 96 87 92 43 20 85 57 74 52 18 7 49 48 91 60 27 85 77 30 90 26 53 Regions Visited 30 Branch Regions 19 Pre-discovered Areas 9 | . 2 1 2 . . . . 2 . 1 . . . . . . . . . 1 . . . . . . . . . . Known Exits Taken 11 | . . . . 1 . 1 1 . . . . 1 1 . . . 1 1 1 . . . . 1 . 1 . 1 . . Unknown Exits Taken 18 | 1 1 1 1 . . . . 1 1 1 1 . . 1 1 1 . . . 1 1 1 1 . 1 . 1 . 1 . Scrap Searched 24 | . . 1 13 . . . . 2 2 3 . 2 . . . . . . . 1 . . . . . . . . . . Spaces Dug 339 | . 1 10 11 . 6 . 5 11 10 3 24 4 19 4 . . 25 5 . . 35 37 3 4 3 29 4 6 34 46 Terrain Destroyed 1755 | . 35 11 38 25 13 2 9 51 39 3 126 14 80 19 39 2 138 75 . 48 37 123 93 65 159 80 14 106 88 223 Melee 25 | . . . . . . . . . 10 3 . . . . . . . 2 . . . 10 . . . . . . . . Projectile 566 | . 1 4 36 3 1 2 9 8 2 . 18 14 58 19 11 2 38 29 . 6 3 41 7 16 33 43 14 33 35 80 AOE 1164 | . 34 7 2 22 12 . . 43 27 . 108 . 22 . 28 . 100 44 . 42 34 72 86 49 126 37 . 73 53 143 Terrain Rammed . | . . . . . . . . . . . . . . . . . . . . . . . . . . . . . . . Walls Destroyed . | . . . . . . . . . . . . . . . . . . . . . . . . . . . . . . . Machines Disabled . | . . . . . . . . . . . . . . . . . . . . . . . . . . . . . . . Actions | -11 -10 -10 -10 -8 -8 -8 -7 -7 -7 -7 -7 -6 -6 -6 -6 -6 -6 -5 -4 -4 -4 -4 -3 -3 -3 -3 -2 -2 -1 -1 --------- Run | Yrd Mat Min Sub Mat Gar Mat Fac Low Low Zio Dee Pro Fac Ext Cet Arc Hub Fac Fac Upp Upp War Pro Res Qua Sec Res Tes Acc Com Total 30225 | 177 811 629 3393 135 819 445 883 1073 875 859 3337 256 905 861 258 341 674 1408 297 565 292 1267 1049 641 1415 1126 680 870 983 2901 Wait 3032 | 52 29 33 85 2 6 27 47 26 26 2 679 6 62 50 14 113 128 74 50 188 2 206 562 15 79 100 73 40 122 134 Move 22714 | 88 682 558 3023 100 681 318 721 996 819 842 2420 238 752 655 191 196 404 924 170 344 273 870 428 528 1069 789 495 635 550 1955 Hop 4 | . . . . . . . . . . . . . . 1 . . . . . . . . . . . . . . . 3 Pick Up 316 | 7 18 4 49 5 15 10 12 3 . 1 30 . 8 . 8 1 3 37 13 2 . 18 . 5 9 10 9 8 6 25 Fast Attach 300 | 5 3 . 13 . . 3 9 3 1 2 10 . 5 3 2 4 7 13 6 2 2 17 2 7 20 20 23 9 32 77 Attach 166 | 2 1 3 8 3 8 7 5 . . 1 14 . 4 . 3 . 12 14 10 1 . 3 . 3 4 13 2 4 7 34 Detach 182 | . 2 . 4 . 5 1 4 . . . 12 . 2 1 3 . 1 20 5 4 2 8 12 8 16 14 14 8 8 28 Swap 283 | . 14 12 18 5 8 1 18 9 10 1 18 . 4 . 2 1 10 17 . 2 4 13 8 7 18 31 8 12 8 24 Drop 368 | . 7 1 33 6 21 11 16 6 . 3 38 . 7 1 9 5 2 20 8 5 1 31 4 9 24 12 23 9 15 41 Fire 2450 | 23 52 17 150 10 52 67 47 30 9 . 67 12 60 33 26 21 106 138 35 17 8 85 33 55 176 136 33 143 231 578 Melee 231 | . . . . . 9 . 1 . 10 7 44 . . . . . . 145 . . . 15 . . . . . . . . Ram . | . . . . . . . . . . . . . . . . . . . . . . . . . . . . . . . Kick 25 | . . . . . . . . . . . . . 1 6 . . . 6 . . . . . 4 . 1 . 2 3 2 Crush 8 | . 3 1 . . . . 3 . . . . . . . . . 1 . . . . . . . . . . . . . Escape Stasis 25 | . . . . . 10 . . . . . . . . 15 . . . . . . . . . . . . . . . . Rewire 103 | . . . . . . . . . . . 5 . . 96 . . . . . . . 1 . . . . . . 1 . Trap . | . . . . . . . . . . . . . . . . . . . . . . . . . . . . . . . Miscellaneous 18 | . . . 10 4 4 . . . . . . . . . . . . . . . . . . . . . . . . . Route ------- -11/Scrapyard -10/Materials (discovered 5 exits: [*Mat x3] / [*Min] / *Sub) -10/Mines (discovered 3 exits: [*Mat] / [*Exi] / *Sub) -10/Subcaves (discovered 2 exits: *Mat x2) -8/Materials (discovered 3 exits: Fac / [*Sto] / Gar) -8/Garrison (discovered 3 exits: *Mat x3) -8/Materials -7/Factory (discovered 2 exits: *Low x2) -7/Lower Caves (discovered 2 exits: [*Low] / *Zio) -7/Lower Caves (discovered 2 exits: *Fac / *Zio) -7/Zion (discovered 2 exits: [*Dee] / [*Pro]) -7/Deep Caves -6/Proximity Caves -6/Factory (discovered 5 exits: *Fac / Low x2 / *Ext x2) -6/Extension (discovered 2 exits: *Fac / [*Cet]) -6/Cetus (discovered 2 exits: *Fac / [*Arc]) -6/Archives -6/Hub_04(d) (discovered 4 exits: *Fac x4) -5/Factory -4/Factory (discovered 2 exits: *Upp x2) -4/Upper Caves -4/Upper Caves -4/Warlord -3/Proximity Caves -3/Research (discovered 4 exits: *Res / *Arm / *Qua x2) -3/Quarantine (discovered 2 exits: *Res / *Sec) -3/Section 7 -2/Research (discovered 3 exits: *Acc x2 / *Tes) -2/Testing -1/Access -1/Command History --------- Turn | Location | Event 7 | -11/Scrapyard | Discovered new exit (range 15) 275 | -11/Scrapyard | Entered Materials 315 | -10/Materials | Build established: Mutant 476 | -10/Materials | Discovered new exit (range 16) 920 | -10/Materials | Repaired Lgt. Treads? 992 | -10/Materials | Discovered new exit (range 4) 1101 | -10/Materials | Discovered new exit (range 15) 1329 | -10/Materials | Discovered new exit (range 9) 1567 | -10/Materials | Discovered new exit (range 15) 1704 | -10/Materials | Entered Mines 1705 | -10/Mines | Assembled infested the area 1710 | -10/Mines | Assisted by a Guerilla fighting off Assembled 1749 | -10/Mines | Received a Rocket Launcher from a helpful Derelict 1773 | -10/Mines | Lost 3 parts (1p1u1w) 1838 | -10/Mines | Learned location of 1 exit from Materials 2136 | -10/Mines | Discovered new exit (range 3) 2470 | -10/Mines | Learned location of Storage (-8) 2496 | -10/Mines | Deemed a non-threat by the Exiles lab entrance 2498 | -10/Mines | Discovered new exit (range 5) 2653 | -10/Mines | Discovered new exit (range 3) 2661 | -10/Mines | Entered Subcaves 2893 | -10/Subcaves | Learned location of Zion (-7) 2893 | -10/Subcaves | Met a Zionite searching for "candidates" 3050 | -10/Subcaves | A Subdweller sparked back to life 3050 | -10/Subcaves | A Subdweller sparked back to life 3050 | -10/Subcaves | A Subdweller sparked back to life 3562 | -10/Subcaves | Core integrity fell below 50% 3685 | -10/Subcaves | Build established: Scavenger-Mutant 3832 | -10/Subcaves | A swath of the cavern ceiling suddenly collapsed 3871 | -10/Subcaves | Visited Clippyterm 4645 | -10/Subcaves | Build established: Subdweller-Mutant 4749 | -10/Subcaves | Disturbed a concealed Subdweller 5191 | -10/Subcaves | Shifting Twisted Machinery released Sub. Laser 5193 | -10/Subcaves | Discovered new exit (range 9) 5197 | -10/Subcaves | Shifting Twisted Machinery released Sub. Optics 5320 | -10/Subcaves | Discovered new exit (range 6) 5362 | -10/Subcaves | A swath of the cavern ceiling suddenly collapsed 5497 | -10/Subcaves | Shifting Twisted Machinery released Sub. Beam Cannon 5557 | -10/Subcaves | Disturbed a concealed Subdweller 5645 | -10/Subcaves | Shifting Twisted Machinery released Shrapnel Trap 6237 | -10/Subcaves | Visited 4L-MR0's lab 6619 | -10/Subcaves | Shifting Twisted Machinery released Ripper 6696 | -10/Subcaves | Shifting Twisted Machinery released Flamer 6893 | -10/Subcaves | Ambushed by Subdweller buried in earth 7911 | -10/Subcaves | Found Powered Cannon 8572 | -10/Subcaves | Ambushed by angry Subdweller bent on revenge 8851 | -10/Subcaves | Found Gun Armor 9094 | -10/Subcaves | Entered Materials 9094 | -8/Materials | Evolved 4 slots: Propulsion x2, Utility x2 9095 | -8/Materials | Identified exit to Factory 9312 | -8/Materials | Discovered new exit (range 16) 9324 | -8/Materials | Identified exit to Garrison 9324 | -8/Materials | Entered Garrison 9360 | -8/Garrison | Triggered checkpoint 9377 | -8/Garrison | Garrison Relay disabled 9479 | -8/Garrison | Warlord forces raided the area 9532 | -8/Garrison | Triggered checkpoint 9566 | -8/Garrison | Triggered checkpoint 9750 | -8/Garrison | Triggered checkpoint 9842 | -8/Garrison | Triggered checkpoint 9844 | -8/Garrison | Triggered checkpoint 9893 | -8/Garrison | Garrison Relay disabled 9936 | -8/Garrison | Triggered checkpoint 9960 | -8/Garrison | Triggered checkpoint 9989 | -8/Garrison | Discovered new exit (range 8) 10190 | -8/Garrison | Build established: Hauler-Mutant 10242 | -8/Garrison | Discovered new exit (range 14) 10344 | -8/Garrison | Attempted to access garrison exit controls, blocked by remote lockdown 10368 | -8/Garrison | Lost 5 allies 10424 | -8/Garrison | Discovered new exit (range 33) 10424 | -8/Garrison | Discovered new exit (range 36) 10424 | -8/Garrison | Discovered new exit (range 65) 10440 | -8/Garrison | Garrison Relay disabled 10573 | -8/Garrison | Garrison Relay disabled 10641 | -8/Garrison | Garrison Relay disabled 10668 | -8/Garrison | Learned Materials security intel 10715 | -8/Garrison | Entered Materials 10715 | -8/Materials | Accompanied by 1 ally 10816 | -8/Materials | Build established: Scavenger-Mutant 11435 | -8/Materials | Discovered exit to Factory (range 11) 11480 | -8/Materials | Entered Factory 11480 | -7/Factory | Evolved 2 slots: Power x1, Utility x1 11856 | -7/Factory | Discovered new exit (range 12) 12085 | -7/Factory | Fabricated S-27 Virus? 12168 | -7/Factory | Repaired Imp. Medium Treads 12513 | -7/Factory | Discovered new exit (range 10) 12546 | -7/Factory | Identified exit to Lower Caves 12704 | -7/Factory | Repaired Lgt. Antimatter Reactor 12876 | -7/Factory | Entered Lower Caves 12876 | -7/Lower Caves | Accompanied by 2 allies 12889 | -7/Lower Caves | Met a Warlord Commander 12890 | -7/Lower Caves | Learned location of Warlord (-4) 12891 | -7/Lower Caves | Warlord Commander delivered Encrypted Comm Array 12892 | -7/Lower Caves | Found Encrypted Comm Array 12942 | -7/Lower Caves | A Derelict revealed a hidden shortcut to a safe place 13219 | -7/Lower Caves | Learned location of Extension (-6) 13704 | -7/Lower Caves | Attracted the attention of an 0b10 checkpoint 14253 | -7/Lower Caves | Discovered new exit (range 7) 14357 | -7/Lower Caves | Encountered a Warlord checkpoint 14606 | -7/Lower Caves | Build established: Mutant 14782 | -7/Lower Caves | Learned Factory security intel 14799 | -7/Lower Caves | Learned Factory stockpile data 14803 | -7/Lower Caves | Destroyed W1-8K6(g) 14950 | -7/Lower Caves | Entered another Lower Caves area 14950 | -7/Lower Caves | Accompanied by 1 ally 14982 | -7/Lower Caves | Discovered new exit (range 14) 15112 | -7/Lower Caves | Attracted the attention of an 0b10 checkpoint 15750 | -7/Lower Caves | Encountered a Warlord checkpoint 16240 | -7/Lower Caves | Learned Factory trap positions 16379 | -7/Lower Caves | Discovered new exit (range 12) 16451 | -7/Lower Caves | Learned Factory trap positions 16949 | -7/Lower Caves | Entered Zion 16949 | -7/Zion | Accompanied by 1 ally 17061 | -7/Zion | Given the Hacking Drone Bay 17082 | -7/Zion | Discovered new exit (range 11) 18403 | -7/Zion | Discovered new exit (range 5) 18406 | -7/Zion | Saw the warning signs outside the Deep Caves entrance 18929 | -7/Zion | Entered Deep Caves 18929 | -7/Deep Caves | Accompanied by 1 ally 19306 | -7/Deep Caves | Attacked by Z-Imprinter 19315 | -7/Deep Caves | Destroyed Z-Imprinter 19722 | -7/Deep Caves | Z-Facility disabled 20284 | -7/Deep Caves | Discovered new exit (range 7) 21326 | -7/Deep Caves | Found Prototype Protection 21326 | -7/Deep Caves | Identified Zio. Heavy Carapace 21330 | -7/Deep Caves | Found Zio. Heavy Carapace 21338 | -7/Deep Caves | Found Prototype Protection 21583 | -7/Deep Caves | Spotted AG-69811 21591 | -7/Deep Caves | Identified Zio. Weapon Casing 21621 | -7/Deep Caves | Destroyed AG-69811 21627 | -7/Deep Caves | Found GOLEM Unit 21648 | -7/Deep Caves | Lost 4 parts (1p1n2u) 21978 | -7/Deep Caves | Spotted AG-52055 22012 | -7/Deep Caves | Destroyed AG-52055 22087 | -7/Deep Caves | Triggered Deep Caves wall 22087 | -7/Deep Caves | Spotted AS-11764 22087 | -7/Deep Caves | Spotted AS-28322 22098 | -7/Deep Caves | Exposed GOLEM chamber 22101 | -7/Deep Caves | Destroyed AS-11764 22101 | -7/Deep Caves | Destroyed AS-28322 22122 | -7/Deep Caves | Destroyed 36 combat bots 22299 | -7/Deep Caves | Found Prototype Special Weapon 22300 | -7/Deep Caves | Identified Field Lobotomy Kit 23358 | -7/Deep Caves | Core integrity fell below 50% 23579 | -7/Deep Caves | Found Zio. Weapon Casing 24333 | -7/Deep Caves | Found Zio. Weapon Casing 24610 | -7/Deep Caves | Found GOLEM Unit 24616 | -7/Deep Caves | Found GOLEM Unit 24704 | -7/Deep Caves | Found GOLEM Unit 25024 | -7/Deep Caves | Entered Proximity Caves 25024 | -6/Proximity Caves | Accompanied by 1 ally 25031 | -6/Proximity Caves | Identified exit to Factory 25058 | -6/Proximity Caves | Learned Factory emergency access door positions 25413 | -6/Proximity Caves | Spotted B-75 Beast 25557 | -6/Proximity Caves | Entered Factory 25557 | -6/Factory | Evolved 2 slots: Utility x2 25558 | -6/Factory | Identified exit to Lower Caves 25558 | -6/Factory | Attached Gun Armor, gained temporary slots: Weapon x2 25559 | -6/Factory | Loaded intel: 93 trap records 25559 | -6/Factory | Attached Powered Cannon, gained temporary slot: Power 25720 | -6/Factory | Garrison activated, responded to threat 25842 | -6/Factory | Build established: Tank 26400 | -6/Factory | Discovered new exit (range 15) 26573 | -6/Factory | Cargo convoy interrupted 26603 | -6/Factory | Identified exit to Extension 27375 | -6/Factory | Entered Extension 27932 | -6/Extension | Rescued a captive Derelict 28000 | -6/Extension | Rescued a captive Derelict 28053 | -6/Extension | Rescued A7 28096 | -6/Extension | Rescued a captive Derelict 28205 | -6/Extension | Build established: Commander-Tank 28331 | -6/Extension | Spotted B-75 Beast 28338 | -6/Extension | Destroyed B-75 Beast 28361 | -6/Extension | Spotted B-75 Beast 28387 | -6/Extension | Allies destroyed B-75 Beast 28422 | -6/Extension | Lost 5 allies 28501 | -6/Extension | Rescued a captive Derelict 28741 | -6/Extension | Rescued a captive Derelict 28745 | -6/Extension | Rescued a captive Derelict 28753 | -6/Extension | Extracted ID and sensor layout for unrecognized location from A7's data core 28758 | -6/Extension | Rescued a captive Derelict 28759 | -6/Extension | Rescued a captive Derelict 28775 | -6/Extension | First assault squad dispatched 28791 | -6/Extension | Rescued a captive Derelict 28792 | -6/Extension | Rescued a captive Derelict 28853 | -6/Extension | Lost 5 allies 28976 | -6/Extension | Discovered new exit (range 10) 28978 | -6/Extension | Discovered new exit (range 6) 29025 | -6/Extension | Entered Cetus 29025 | -6/Cetus | Accompanied by 8 allies 29054 | -6/Cetus | Spotted Cetus Guard 29054 | -6/Cetus | Spotted Cetus Guard 29058 | -6/Cetus | Spotted Cetus Guard 29060 | -6/Cetus | Spotted Cetus Guard 29071 | -6/Cetus | Destroyed Cetus Guard 29074 | -6/Cetus | Destroyed Cetus Guard 29077 | -6/Cetus | Allies destroyed Cetus Guard 29081 | -6/Cetus | Destroyed Cetus Guard 29097 | -6/Cetus | Lost 4 allies 29200 | -6/Cetus | Discovered new exit (range 15) 29244 | -6/Cetus | Spotted Cetus Guard 29244 | -6/Cetus | Spotted Cetus Guard 29246 | -6/Cetus | Spotted Cetus Guard 29249 | -6/Cetus | Spotted Cetus Guard 29249 | -6/Cetus | Destroyed Cetus Guard 29252 | -6/Cetus | Destroyed Cetus Guard 29257 | -6/Cetus | Destroyed Cetus Guard 29285 | -6/Cetus | Destroyed Cetus Guard 29300 | -6/Cetus | Lost 4 allies 29306 | -6/Cetus | Destroyed 11 combat bots 29314 | -6/Cetus | Discovered new exit (range 15) 29324 | -6/Cetus | Met Revision 17 29492 | -6/Cetus | Entered Archives 29629 | -6/Archives | Build established: Scavenger-Tank 29764 | -6/Archives | Discovered new exit (range 14) 32193 | -6/Archives | Entered Hub_04(d) 32206 | -6/Hub_04(d) | Identified exit to Factory 32572 | -6/Hub_04(d) | Garrison activated, responded to threat 33045 | -6/Hub_04(d) | Network Hub disabled 33046 | -6/Hub_04(d) | Spotted Lightning 33047 | -6/Hub_04(d) | Spotted Lightning 33047 | -6/Hub_04(d) | Spotted Lightning 33047 | -6/Hub_04(d) | Spotted Lightning 33047 | -6/Hub_04(d) | Spotted Lightning 33047 | -6/Hub_04(d) | Spotted Lightning 33047 | -6/Hub_04(d) | Spotted Lightning 33048 | -6/Hub_04(d) | Spotted Lightning 33049 | -6/Hub_04(d) | Assimilated G-50 Soldier with FLK Orb 33051 | -6/Hub_04(d) | Spotted Lightning 33052 | -6/Hub_04(d) | Assimilated Lightning with FLK Orb 33052 | -6/Hub_04(d) | Garrison activated, responded to threat 33055 | -6/Hub_04(d) | Assimilated Lightning with FLK Orb 33058 | -6/Hub_04(d) | Assimilated Lightning with FLK Orb 33072 | -6/Hub_04(d) | Destroyed Lightning 33078 | -6/Hub_04(d) | Destroyed Lightning 33090 | -6/Hub_04(d) | System corruption reached 10% 33099 | -6/Hub_04(d) | Destroyed Lightning 33111 | -6/Hub_04(d) | Destroyed Lightning 33127 | -6/Hub_04(d) | P-60 Hacker assimilated allied Lightning 33128 | -6/Hub_04(d) | Lost 3 parts (2u1w) 33148 | -6/Hub_04(d) | Destroyed Lightning 33162 | -6/Hub_04(d) | Destroyed Lightning 33180 | -6/Hub_04(d) | Destroyed Lightning 33190 | -6/Hub_04(d) | Core integrity fell below 50% 33192 | -6/Hub_04(d) | Lost 8 parts (1p2n3u2w) 33201 | -6/Hub_04(d) | Destroyed 7 combat bots 33202 | -6/Hub_04(d) | Assimilated Lightning with FLK Orb 33242 | -6/Hub_04(d) | Lost 5 parts (1n2u2w) 33243 | -6/Hub_04(d) | First assault squad dispatched 33251 | -6/Hub_04(d) | Found Prototype Device 33251 | -6/Hub_04(d) | Identified Exp. EM Disruption Field 33298 | -6/Hub_04(d) | Entered Factory 33298 | -5/Factory | Accompanied by 1 ally 33298 | -5/Factory | Evolved 2 slots: Utility x2 33299 | -5/Factory | Loaded intel: 105 trap records 33571 | -5/Factory | Discovered new exit (range 11) 33598 | -5/Factory | First assault squad dispatched 33602 | -5/Factory | Identified exit to Factory 33658 | -5/Factory | P-70 Sage assimilated allied Lightning 33674 | -5/Factory | Destroyed Lightning 34052 | -5/Factory | Build established: Scavenger-Golem 34334 | -5/Factory | Found Quantum Capacitor 34509 | -5/Factory | Lost 3 parts (1p1n1u) 34936 | -5/Factory | Core integrity fell below 50% 34995 | -5/Factory | Destroyed 7 combat bots 35039 | -5/Factory | Lost 11 parts (1p3n5u2w) 35291 | -5/Factory | Build established: Golem 35316 | -5/Factory | High security lockdown imminent 35343 | -5/Factory | Core integrity fell below 20% 35396 | -5/Factory | High security lockdown engaged 35434 | -5/Factory | Entered another Factory area 35434 | -4/Factory | Evolved 2 slots: Propulsion x1, Weapon x1 35463 | -4/Factory | Lost 9 parts (1p4n3u1w) 35589 | -4/Factory | Garrison activated, responded to threat 35645 | -4/Factory | System corruption reached 10% 35663 | -4/Factory | Identified exit to Upper Caves 35684 | -4/Factory | First assault squad dispatched 35816 | -4/Factory | Entered Upper Caves 36107 | -4/Upper Caves | Attracted the attention of an 0b10 outpost 36133 | -4/Upper Caves | Destroyed 9 combat bots 36135 | -4/Upper Caves | Build established: Scavenger-Golem 36367 | -4/Upper Caves | Discovered new exit (range 9) 36383 | -4/Upper Caves | Learned location of Testing (-2) 36438 | -4/Upper Caves | Entered another Upper Caves area 36466 | -4/Upper Caves | Attracted the attention of an 0b10 checkpoint 36707 | -4/Upper Caves | Found Alien Artifact 36707 | -4/Upper Caves | Identified Dimensional Node Initializer 36707 | -4/Upper Caves | Initialized slip node 36760 | -4/Upper Caves | Discovered new exit (range 14) 36782 | -4/Upper Caves | Entered Warlord 36823 | -4/Warlord | System corruption cleaned by Quarantine Array 37254 | -4/Warlord | Received a Watcher feed algorithm from an ecstatic Tinkerer 37430 | -4/Warlord | Met Warlord 37437 | -4/Warlord | Warlord's base attacked by MAIN.C 37446 | -4/Warlord | Found Prototype Reactor 37446 | -4/Warlord | Identified Vortex Chain Reactor 37452 | -4/Warlord | Found Prototype Device 37452 | -4/Warlord | Identified Exp. Cloaking Device 37464 | -4/Warlord | Found Prototype Device 37464 | -4/Warlord | Identified Thermal Barrier 37489 | -4/Warlord | Found Prototype Hackware 37592 | -4/Warlord | Found Prototype Energy Cannon 37592 | -4/Warlord | Identified Vortex Cannon 37595 | -4/Warlord | Found Prototype Energy Gun 37595 | -4/Warlord | Identified Vortex Rifle 37600 | -4/Warlord | Found Prototype Energy Gun 37600 | -4/Warlord | Identified Vortex Shotgun 37605 | -4/Warlord | Found Vortex Shotgun 37614 | -4/Warlord | Found Vortex Cannon 37772 | -4/Warlord | Spotted B-90 Cyclops 37787 | -4/Warlord | Warlord forces counterattacked 37791 | -4/Warlord | Spotted Executioner 37848 | -4/Warlord | Spotted Striker 37867 | -4/Warlord | Found Prototype Processor 37867 | -4/Warlord | Identified Exp. Core Analyzer 37876 | -4/Warlord | Spotted Executioner 37921 | -4/Warlord | Lost 18 allies 37937 | -4/Warlord | Spotted Executioner 37937 | -4/Warlord | Spotted Executioner 37949 | -4/Warlord | Destroyed Executioner 37991 | -4/Warlord | Build established: Tank 37996 | -4/Warlord | Lost 11 allies 38089 | -4/Warlord | Spotted Executioner 38112 | -4/Warlord | Warlord base infiltrated, sounded retreat 38142 | -4/Warlord | Lost 4 allies 38151 | -4/Warlord | Destroyed 10 combat bots 38154 | -4/Warlord | Destroyed Executioner 38159 | -4/Warlord | Destroyed Executioner 38160 | -4/Warlord | Spotted B-90 Cyclops 38175 | -4/Warlord | Spotted Striker 38180 | -4/Warlord | Destroyed 9 combat bots 38189 | -4/Warlord | Spotted B-86 Titan 38226 | -4/Warlord | Lost 4 allies 38236 | -4/Warlord | Discovered new exit (range 15) 38259 | -4/Warlord | Entered Proximity Caves 38276 | -3/Proximity Caves | Lost 7 allies 38474 | -3/Proximity Caves | Spotted B-86 Titan 38544 | -3/Proximity Caves | Attracted the attention of an 0b10 checkpoint 38618 | -3/Proximity Caves | Build established: Scavenger-Tank 38929 | -3/Proximity Caves | Discovered new exit (range 7) 39413 | -3/Proximity Caves | Entered Research 39413 | -3/Research | Evolved 2 slots: Power x1, Utility x1 39511 | -3/Research | Discovered new exit (range 5) 39613 | -3/Research | Revision forces began assault on 0b10 39630 | -3/Research | Met up with Revision 17++ 39687 | -3/Research | Identified exit to Armory 39687 | -3/Research | Identified exit to Quarantine 39762 | -3/Research | Discovered new exit (range 9) 39785 | -3/Research | Identified System Mapper 40113 | -3/Research | Research terminal network offline 40201 | -3/Research | Destroyed 7 combat bots 40225 | -3/Research | Entered Quarantine 40308 | -3/Quarantine | Build established: Mutant 40320 | -3/Quarantine | Found Prototype Launcher 40326 | -3/Quarantine | Identified Mni. Smartbomb Launcher 40471 | -3/Quarantine | Identified exit to Research 40632 | -3/Quarantine | Build established: Hacker-Mutant 40653 | -3/Quarantine | Cryocooling Duct disabled 40668 | -3/Quarantine | Ambient heat levels rising (+20) 40668 | -3/Quarantine | Non-combat units ordered to evacuate 40727 | -3/Quarantine | Found Alien Artifact 40812 | -3/Quarantine | Found Alien Artifact 40819 | -3/Quarantine | Found Dimensional Node Initializer 40819 | -3/Quarantine | Initialized slip node 40820 | -3/Quarantine | Identified Transdimensional Reconstructor 40820 | -3/Quarantine | Warped through subspace to slip node 40831 | -3/Quarantine | Found Transdimensional Reconstructor 40849 | -3/Quarantine | Met incapacitated Sigix Warrior 40849 | -3/Quarantine | Lockdown squad dispatched 40851 | -3/Quarantine | Acquired the access code to the Sigix quarantine chamber 40938 | -3/Quarantine | Spotted Lightning 40945 | -3/Quarantine | Spotted Lightning 40949 | -3/Quarantine | Spotted Lightning 40971 | -3/Quarantine | Destroyed Lightning 40976 | -3/Quarantine | Destroyed Lightning 41009 | -3/Quarantine | Destroyed Lightning 41053 | -3/Quarantine | Found Exp. EM Disruption Field 41100 | -3/Quarantine | Found Alien Artifact 41100 | -3/Quarantine | Identified Core Reset Matrix 41100 | -3/Quarantine | Identified Subatomic Replicator 41100 | -3/Quarantine | Used Core Reset Matrix 41104 | -3/Quarantine | Sensed 8 artifacts in vicinity 41150 | -3/Quarantine | Found Prototype Launcher 41150 | -3/Quarantine | Identified Mni. Smartbomb Launcher 41235 | -3/Quarantine | Found Sigix Broadsword 41522 | -3/Quarantine | First assault squad dispatched 41542 | -3/Quarantine | Discovered exit to Research (range 10) 41796 | -3/Quarantine | Spotted Fortress 41887 | -3/Quarantine | Discovered new exit (range 6) 41906 | -3/Quarantine | Entered Section 7 41907 | -3/Section 7 | Sensed 23 artifacts in vicinity 42058 | -3/Section 7 | Destroyed 10 combat bots 42375 | -3/Section 7 | Discovered exit to Research (range 15) 42656 | -3/Section 7 | First assault squad dispatched 42924 | -3/Section 7 | Garrison activated, responded to threat 42948 | -3/Section 7 | Lost 3 parts (1p1u1w) 42972 | -3/Section 7 | Destroyed 7 combat bots 43000 | -3/Section 7 | Repaired Enh. Biometal Leg? 43010 | -3/Section 7 | Found Microwarp Drive 43044 | -3/Section 7 | Found Integrated Reactor 43044 | -3/Section 7 | Installed Integrated Reactor, increased core energy generation (+10) 43090 | -3/Section 7 | Spotted B-86 Titan 43151 | -3/Section 7 | Spotted Executioner 43151 | -3/Section 7 | Spotted Executioner 43159 | -3/Section 7 | Core integrity fell below 50% 43224 | -3/Section 7 | Spotted B-99 Colossus 43240 | -3/Section 7 | Found Integrated Reactor 43240 | -3/Section 7 | Installed Integrated Reactor, increased core energy generation (+10) 43243 | -3/Section 7 | Found Integrated Reactor 43243 | -3/Section 7 | Installed Integrated Reactor, increased core energy generation (+10) 43271 | -3/Section 7 | Found LRC Armor 43271 | -3/Section 7 | Installed LRC Armor, increased core integrity (+250) 43280 | -3/Section 7 | Used Subatomic Replicator to replicate LRC Inertial Stabilizer 43281 | -3/Section 7 | Found LRC Inertial Stabilizer 43281 | -3/Section 7 | Installed LRC Inertial Stabilizer, increased mass support (+10) 43284 | -3/Section 7 | Installed LRC Inertial Stabilizer, increased mass support (+10) 43291 | -3/Section 7 | Warped through subspace 43350 | -3/Section 7 | Build established: Alien-Golem 43370 | -3/Section 7 | Found Transdimensional Reconstructor 43373 | -3/Section 7 | Found Transdimensional Reconstructor 43445 | -3/Section 7 | Spotted Alpha 7 43445 | -3/Section 7 | Spotted Alpha 7 43450 | -3/Section 7 | Spotted S7 Guard 43455 | -3/Section 7 | Scanned by Researcher 43455 | -3/Section 7 | Found Integrated Thermoelectric Network 43455 | -3/Section 7 | Installed Integrated Thermoelectric Network, gained heat-energy exchange potential 43456 | -3/Section 7 | Intercept squad dispatched 43457 | -3/Section 7 | Warped through subspace 43492 | -3/Section 7 | Spotted Tracker 43508 | -3/Section 7 | Entered Research 43508 | -2/Research | Warlord forces began assault on 0b10 43508 | -2/Research | Evolved 2 slots: Utility x2 43533 | -2/Research | Distinguished unit "Grunt Murderers" dispatched to help 43579 | -2/Research | Lost 3 allies 43618 | -2/Research | Research machine network offline 43665 | -2/Research | Repaired Enh. Biometal Leg 43767 | -2/Research | Found Quantum Capacitor 43780 | -2/Research | Found Quantum Capacitor 43812 | -2/Research | Spotted B-90 Cyclops 43855 | -2/Research | Discovered new exit (range 16) 43873 | -2/Research | Borebot progress halted 43880 | -2/Research | Identified exit to Access 43955 | -2/Research | Borebot progress halted 43982 | -2/Research | Found Prototype Device 43982 | -2/Research | Identified Exp. Transmission Jammer 44059 | -2/Research | Found Prototype Processor 44059 | -2/Research | Identified Exp. Core Analyzer 44132 | -2/Research | Discovered exit to Access (range 19) 44215 | -2/Research | Spotted Striker 44223 | -2/Research | Destroyed Striker 44250 | -2/Research | Spotted Striker 44304 | -2/Research | Found Prototype Device 44304 | -2/Research | Identified Adv. Kinecellerator 44306 | -2/Research | Discovered new exit (range 6) 44315 | -2/Research | Entered Testing 44347 | -2/Testing | Build established: Alien-Gunner 44383 | -2/Testing | Garrison activated, responded to threat 44423 | -2/Testing | Lost 3 allies 44606 | -2/Testing | Spotted Alpha 7 44666 | -2/Testing | Discovered exit to Access (range 22) 44711 | -2/Testing | Found Prototype Device 44717 | -2/Testing | Identified Adv. Particle Accelerator 44723 | -2/Testing | Found Adv. Particle Accelerator 44733 | -2/Testing | Intercept squad dispatched 44735 | -2/Testing | Spotted Tracker 44738 | -2/Testing | Spotted Tracker 44741 | -2/Testing | Spotted Combat Programmer 44743 | -2/Testing | Destroyed Tracker 44744 | -2/Testing | Spotted Combat Programmer 44749 | -2/Testing | Destroyed Tracker 44755 | -2/Testing | Destroyed Combat Programmer 44761 | -2/Testing | Destroyed Combat Programmer 44955 | -2/Testing | Found Prototype Hackware 44983 | -2/Testing | Found Prototype Ballistic Cannon 44983 | -2/Testing | Identified Omega Cannon 45065 | -2/Testing | First assault squad dispatched 45158 | -2/Testing | Found Prototype Processor 45158 | -2/Testing | Identified Exp. Targeting Computer 45168 | -2/Testing | Intercept squad dispatched 45177 | -2/Testing | Spotted Tracker 45178 | -2/Testing | Spotted Tracker 45183 | -2/Testing | Spotted Combat Programmer 45184 | -2/Testing | Spotted Combat Programmer 45189 | -2/Testing | Destroyed Tracker 45192 | -2/Testing | Destroyed Tracker 45198 | -2/Testing | Destroyed Combat Programmer 45204 | -2/Testing | Destroyed Combat Programmer 45208 | -2/Testing | Found Prototype Device 45208 | -2/Testing | Identified Exp. Phase Shifter 45216 | -2/Testing | Found Exp. Phase Shifter 45221 | -2/Testing | Lost 4 parts (1p3u) 45262 | -2/Testing | Entered Access 45262 | -1/Access | Accompanied by 3 allies 45262 | -1/Access | Evolved 2 slots: Power x1, Utility x1 45383 | -1/Access | Lost 3 allies 45726 | -1/Access | Build established: Alien-Mutant 45795 | -1/Access | Found Prototype Hackware 45795 | -1/Access | Identified Exp. System Shield 45816 | -1/Access | Intercept squad dispatched 45823 | -1/Access | Spotted Tracker 45823 | -1/Access | Spotted Tracker 45830 | -1/Access | Destroyed Tracker 45838 | -1/Access | Spotted Combat Programmer 45846 | -1/Access | Destroyed Tracker 45868 | -1/Access | Spotted Combat Programmer 45909 | -1/Access | Destroyed Combat Programmer 45917 | -1/Access | Destroyed Combat Programmer 45921 | -1/Access | Lost 5 parts (1n3u1w) 46046 | -1/Access | First assault squad dispatched 46139 | -1/Access | Destroyed 10 combat bots 46141 | -1/Access | Lost 6 parts (1n3u2w) 46337 | -1/Access | Discovered new exit (range 7) 46344 | -1/Access | Entered Command 46503 | -1/Command | Phase Generator disabled 46534 | -1/Command | Lost 3 parts (2p1u) 46616 | -1/Command | Lost 4 parts (2p1n1u) 46761 | -1/Command | Found Unknown Device 46761 | -1/Command | Identified Launcher Loader 46786 | -1/Command | Spotted B-99 Colossus 47044 | -1/Command | Identified Ghost Barrier 47387 | -1/Command | First assault squad dispatched 47542 | -1/Command | Lost 11 parts (3p1n4u3w) 47647 | -1/Command | Found Quantum Capacitor 47771 | -1/Command | Core integrity fell below 50% 47819 | -1/Command | Destroyed 10 combat bots 47819 | -1/Command | Lost 10 parts (4p2n4u) 47894 | -1/Command | Emitted hypermatrix ping 47898 | -1/Command | Assembled emerged from beneath the floor 47899 | -1/Command | Assembled emerged from beneath the floor 47973 | -1/Command | Lost 11 allies 47984 | -1/Command | Assembled emerged from beneath the floor 47987 | -1/Command | Found Prototype Launcher 47987 | -1/Command | Identified Point Singularity Launcher 47993 | -1/Command | Found Point Singularity Launcher 48114 | -1/Command | Lost 8 allies 48236 | -1/Command | Found Prototype Device 48236 | -1/Command | Identified Exp. Thermal Shield 48329 | -1/Command | Assembled emerged from beneath the floor 48423 | -1/Command | Lost 6 allies 48703 | -1/Command | Destroyed 9 combat bots 48713 | -1/Command | Lost 3 parts (1p1n1u) 48740 | -1/Command | System corruption reached 10% 48892 | -1/Command | Disengaged cave seal 48893 | -1/Command | Welcomed Warlord to Command 49098 | -1/Command | Spotted M Guard 49098 | -1/Command | Spotted M Guard 49098 | -1/Command | Spotted Combat Programmer 49106 | -1/Command | Warlord commented on Warlord statues 49107 | -1/Command | Spotted Combat Programmer 49129 | -1/Command | Combat Programmer assimilated allied 4V-NLJ(L) 49129 | -1/Command | Spotted 4V-NLJ(L) 49148 | -1/Command | Core integrity fell below 20% 49157 | -1/Command | Destroyed M Guard 49165 | -1/Command | Lost 10 allies 49173 | -1/Command | All MAIN.C guards destroyed 49213 | -1/Command | System corruption reached 30% 49220 | -1/Command | Destroyed 9 combat bots 49227 | -1/Command | Lost 19 parts (4p5n6u4w) 49238 | -1/Command | Found Prototype Device 49238 | -1/Command | Identified AEGIS Remote Shield 49498 | -1/Command | Build established: Alien-Tank 49549 | -1/Command | Met MAIN.C 49551 | -1/Command | Warlord shut down involuntarily 49623 | -1/Command | 0b10 Conduit disabled 49631 | -1/Command | Lost 4 parts (4u) 49673 | -1/Command | Destroyed MAIN.C Shell 49674 | -1/Command | MAIN.C activated Command garrisons 49719 | -1/Command | Destroyed by H-88 Terminator with KE Penetrator Last Messages --------------- 49709_ Knocked back. 49709_ Acquired 2 matter. 49711_ Acquired 5 matter. 49712_ GHL89&,Y>A|AC1WR< HW5OEAB&ZQZ0B# 49713_ P-80 Master resets P-80 Master, system corruption cleaned. 49714_ Knocked back. 49716_ C-30 ARC bursts open, deploying its payload. 49716_ H-88 Terminator unfolds itself. 49716_ Penetrated by Slug. 49716_ Spk. Heavy Treads destroyed. 49716_ Penetrated by Slug. 49716_ Centrium Light Armor Plating destroyed. 49717_ Acquired 7 matter. 49717_ Centrium Light Armor Plating destroyed. 49717_ Critical hit (Blast). 49717_ Knocked back. 49719_ Penetrated by Slug. Map ----- +----------------------------------------------------+ | ??????????????????????????????????????????####?#?# | | ??????????????????????????????????????? #??###?##? | | ??????????????????????????????????????????#######? | | ????????????????????????????????????????##??#?#??# | | ??????????????????????????????????????#??#??#####? | | ????????????????????????????????????????#??####### | | ??????????????????????????????????????????#??##### | | ?????????????????????????????????????????######?#? | | ??????????????????????????????????????????#?##??#? | | ?????????????????????????????????????????#????#### | | ???????????????????????????????????????????##?##?# | | ??????????????????????????????????????????#??????? | | ?????????????????????????????????????????#?##?#### | | ????????????????????????????????????????#?#??##?## | | ???????????????????????????????????????????#??##?# | | ????????????????????????????????????????????####?? | | ???????????????????????????????????????????##??#?# | | ???????????????????????????????????????????????##? | | ####?????????????????????????????????????????##??? | | ???????????????????????????????????????#?#??? | | ???????????????????????????????????#???#???? | | #######################???????????????????#? | | ]/]%! %p #????????????????????? | | !/!% p%h #????????????????????? | | %/!!% %h #????????????????????# | | ]###################@ #????????####????????? | | ??????????????????# #??????### ###??????? | | ???????????????????# ##?##### # #######?# | | ????????????????????# T### " # #?# | | " "?????????????????????#+; ### " ## ### | | """?????????????????????# ! | | ""??????????????????????# | | ???????????????????????# = [ | | ????????????????????????# | | ????????????????????????# ! | | ????????????????????????# # # # ### ### | | ????????????????????????###### # ## #?# | | ?????????????????????????????####### ##### #####?# | | ???????????????????????????????????##??#####?????? | | ?????????????????????????????????????????????????? | | ?????????????????????????????????????????????????? | | ?????????????????????????????????????????????????? | | ?????????????????????????????????????????????????? | | ?????????????????????????????????????????????????? | | ?????????????????????????????????????????????????? | | ?????????????????????????????????????????????????? | | ?????????????????????????????????????????????????? | | ?????????????????????????????????????????????????? | | ?????????????????????????????????????????????????? | | ?????????????????????????????????????????????????? | +----------------------------------------------------+ Best States ------------- Heat Dissipation 94 Energy Generation 111 Energy Capacity 2100 Matter Stores 300 Matter Capacity 300 Sight Range 23 Terrain Scan Range 24 Terrain Scan Density 85 Jamming Range 22 Cloak Strength 4 Power Amplification 30 Additional Mass Support 20 Base Temperature (-) 200 EM Shielding 4 Armor Coverage 2250 Resistance: KI 30 Resistance: TH 30 Resistance: EX 50 Resistance: EM 75 Resistance: I 15 Resistance: S 15 Resistance: P 15 Core Shielding 30 Power Shielding 90 Propulsion Shielding 66 Weapon Shielding 100 Point Defense Rating 480 Melee Speed Boost 20 Phase Shifting 20 Evasion (%) 81 Targeting Accuracy 20 Launcher Accuracy 40 Core Analysis 8 Armor Integrity Analysis 30 Recoil Reduction 5 Energy Filtering 30 Particle Charging 50 Force Boost 20 Offensive Hacking 30 Defensive Hacking 20 Item Schematics ----------------- None Robot Schematics ------------------ None Fabricated ------------ S-27 Virus | x4 | -7/Factory | Preloaded Alien Tech Used ----------------- Dimensional Node Initializer Transdimensional Reconstructor Core Reset Matrix Sigix Broadsword Microwarp Drive Integrated Reactor LRC Armor Subatomic Replicator LRC Inertial Stabilizer Integrated Thermoelectric Network Achievements -------------- None Challenges ------------ None Game ------ Seed BiocellHoverField Manual? 0 Play Time 08:35:47 Cumulative 489.9 hours Start 2024.02.29 @ 14:29:11 End 2024.03.08 @ 21:14:11 Sessions 21 Manual Loads 0 Difficulty Rogue Special Mode None Game No. 181 Rogue 181 Adventurer 0 Explorer 0 Win Type - Total 23 Types 8/1/5/3/1/0/4/1/0 Lore% 89 Gallery% 93 Achievement% 84 Wizard Run 0 Options --------- Layout 2 ASCII 0 Keyboard 1 Movement Arrows Keybinds 0 Fullscreen 2 Font 24/Smallcaps Map View 50x44 Zoom Use 0% Tactical HUD 1 Map Filters NONE Filters NONE Steam 1 RUN: efe7aa08-33e8-4b63-bce4-c681d9e988d2